{"text_format":"1","workbook":"xlsx","n_sheets":2,"sheets":["Formato","Catálogo"],"not_rendered":{"charts":0,"images":1,"macros":1,"external_links":0,"defined_names":2,"comments":0,"pivot_tables":0},"unopened":[],"bounds":{"document_bytes":16777216,"sheet_cells":100000,"rows_first":2000,"rows_last":500,"rows_between":2000,"halvings":0,"cell_chars":16384,"cell_head_chars":4096},"cells_cut":0,"cells_raw":0,"read":"whole","date_system":"1900"}

{"sheet":"Formato","index":0,"n_rows":115,"n_cols":4,"rows_kept":115,"cut":false,"hidden":false,"merged":[[5,0,5,2],[4,0,4,2],[6,0,6,1],[2,5,4,5],[0,1,0,3],[2,1,2,3]]}
[null,"Lineamiento tercero, fracción IV. Reporte de las temáticas desglosadas por subtema"]
[null,"Normatividad aplicable a:"]
[null,"Partido de la Revolución Democrática"]
[null,null,null,{"$f":"IF(B3=\"Seleccione el nombre del sujeto obligado\",\"\",VLOOKUP(B3,Catálogo!A2:B858,2,0))","v":"22340"}]
["Trimestre que informa",null,null,"3° 2022"]
["1.- Durante el periodo que reporta se recibieron Solicitudes de Información?",null,null,"Si"]
["Temáticas de las solicitudes  de información pública",null,"Número de solicitudes información del periodo informado","% del total ingresado"]
["1. Actividades de la institución ",null,{"$f":"SUM(C9:C12)","v":1},{"$f":"IF(C8=0,\"\",(C8/$C$115)*100)","v":3.125}]
[null,"a. Programa de trabajo",1,{"$f":"IF(C9=\"\",\"\",(C9/$C$115)*100)","v":3.125}]
[null,"b. Resultados de actividades sustantivas",null,{"$f":"IF(C10=\"\",\"\",(C10/$C$115)*100)","v":""}]
[null,"c. Agenda de servidores públicos",null,{"$f":"IF(C11=\"\",\"\",(C11/$C$115)*100)","v":""}]
[null,"d. Otros",null,{"$f":"IF(C12=\"\",\"\",(C12/$C$115)*100)","v":""}]
["2. Archivos",null,null,{"$f":"IF(C13=\"\",\"\",(C13/$C$115)*100)","v":""}]
["3. Auditorías",null,{"$f":"SUM(C15:C17)","v":3},{"$f":"IF(C14=0,\"\",(C14/$C$115)*100)","v":9.375}]
[null,"a. Resultados",3,{"$f":"IF(C15=\"\",\"\",(C15/$C$115)*100)","v":9.375}]
[null,"b. Avance de recomendaciones",null,{"$f":"IF(C16=\"\",\"\",(C16/$C$115)*100)","v":""}]
[null,"c. Otros",null,{"$f":"IF(C17=\"\",\"\",(C17/$C$115)*100)","v":""}]
["4. Campañas electorales",null,null,{"$f":"IF(C18=\"\",\"\",(C18/$C$115)*100)","v":""}]
["5. Compras públicas y contratos",null,{"$f":"SUM(C20:C28)","v":13},{"$f":"IF(C19=0,\"\",(C19/$C$115)*100)","v":40.625}]
[null,"a. Obras públicas",null,{"$f":"IF(C20=\"\",\"\",(C20/$C$115)*100)","v":""}]
[null,"b. Bienes adquiridos",5,15.625]
[null,"c. Servicios contratados",5,15.625]
[null,"d. Bienes arrendados",3,9.375]
[null,"e. Licitaciones",null,""]
[null,"f. Adjudicaciones directas",null,""]
[null,"g. Invitación a proveedores",null,""]
[null,"h. Publicidad oficial",null,""]
[null,"i. Otros",null,""]
["6. Comunidades Indígenas",null,null,""]
["7. Comunidades LGTBI",null,null,""]
["8. Datos personales",null,{"$f":"SUM(C32:C35)","v":4},{"$f":"IF(C31=0,\"\",(C31/$C$115)*100)","v":12.5}]
[null,"a. Datos personales",2,{"$f":"IF(C32=\"\",\"\",(C32/$C$115)*100)","v":6.25}]
[null,"b. Expediente clínico o médico",null,""]
[null,"c. Expediente laboral",2,6.25]
[null,"d. Otros",null,""]
["9. Desastres y protección civil",null,null,""]
["10. Discriminación",null,null,""]
["11. Educación",null,null,""]
["12. Estructura Orgánica",null,{"$f":"SUM(C40:C43)","v":2},{"$f":"IF(C39=0,\"\",(C39/$C$115)*100)","v":6.25}]
[null,"a. Organigrama",2,{"$f":"IF(Formato!$C40=\"\",\"\",(Formato!$C40/$C$115)*100)","v":6.25}]
[null,"b. Directorio",null,{"$f":"IF(Formato!$C41=\"\",\"\",(Formato!$C41/$C$115)*100)","v":""}]
[null,"c. Vacantes",null,{"$f":"IF(Formato!$C42=\"\",\"\",(Formato!$C42/$C$115)*100)","v":""}]
[null,"d. Otros",null,{"$f":"IF(Formato!$C43=\"\",\"\",(Formato!$C43/$C$115)*100)","v":""}]
["13. Gastos",null,{"$f":"SUM(C45:C48)","v":5},{"$f":"IF(C44=0,\"\",(C44/$C$115)*100)","v":15.625}]
[null,"a. Gastos operativos",null,{"$f":"IF(Formato!$C45=\"\",\"\",(Formato!$C45/$C$115)*100)","v":""}]
[null,"b. Gastos administrativos",5,{"$f":"IF(Formato!$C46=\"\",\"\",(Formato!$C46/$C$115)*100)","v":15.625}]
[null,"c. Gastos de representación",null,{"$f":"IF(Formato!$C47=\"\",\"\",(Formato!$C47/$C$115)*100)","v":""}]
[null,"d. Otros",null,{"$f":"IF(Formato!$C48=\"\",\"\",(Formato!$C48/$C$115)*100)","v":""}]
["14. Igualdad de género",null,{"$f":"SUM(C50:C55)","v":1},{"$f":"IF(C49=0,\"\",(C49/$C$115)*100)","v":3.125}]
[null,"a. Programas de apoyo a mujeres",1,{"$f":"IF(Formato!$C50=\"\",\"\",(Formato!$C50/$C$115)*100)","v":3.125}]
[null,"b. Salud de la mujer",null,{"$f":"IF(Formato!$C51=\"\",\"\",(Formato!$C51/$C$115)*100)","v":""}]
[null,"c. Violencia de género",null,{"$f":"IF(Formato!$C52=\"\",\"\",(Formato!$C52/$C$115)*100)","v":""}]
[null,"d. Discriminación laboral",null,{"$f":"IF(Formato!$C53=\"\",\"\",(Formato!$C53/$C$115)*100)","v":""}]
[null,"e. Mujeres empresarias",null,{"$f":"IF(Formato!$C54=\"\",\"\",(Formato!$C54/$C$115)*100)","v":""}]
[null,"f. Otros",null,{"$f":"IF(Formato!$C55=\"\",\"\",(Formato!$C55/$C$115)*100)","v":""}]
["15. Información generada o administrada por el sujeto obligado",null,{"$f":"SUM(C57:C63)","v":0},{"$f":"IF(C56=0,\"\",(C56/$C$115)*100)","v":""}]
[null,"a. Trámites",null,{"$f":"IF(Formato!$C57=\"\",\"\",(Formato!$C57/$C$115)*100)","v":""}]
[null,"b. Concesiones",null,{"$f":"IF(Formato!$C58=\"\",\"\",(Formato!$C58/$C$115)*100)","v":""}]
[null,"c. Estadísticas",null,{"$f":"IF(Formato!$C59=\"\",\"\",(Formato!$C59/$C$115)*100)","v":""}]
[null,"d. Resultados de encuestas",null,{"$f":"IF(Formato!$C60=\"\",\"\",(Formato!$C60/$C$115)*100)","v":""}]
[null,"e. Marco jurídico",null,{"$f":"IF(Formato!$C61=\"\",\"\",(Formato!$C61/$C$115)*100)","v":""}]
[null,"f. Presupuesto o avance financiero",null,{"$f":"IF(Formato!$C62=\"\",\"\",(Formato!$C62/$C$115)*100)","v":""}]
[null,"g. Otros",null,{"$f":"IF(Formato!$C63=\"\",\"\",(Formato!$C63/$C$115)*100)","v":""}]
["16. Información sobre servidores públicos",null,{"$f":"SUM(C65:C69)","v":3},{"$f":"IF(C64=0,\"\",(C64/$C$115)*100)","v":9.375}]
[null,"a. Sueldos",3,{"$f":"IF(Formato!$C65=\"\",\"\",(Formato!$C65/$C$115)*100)","v":9.375}]
[null,"b. Prestaciones de servidores públicos",null,{"$f":"IF(Formato!$C66=\"\",\"\",(Formato!$C66/$C$115)*100)","v":""}]
[null,"c. Información curricular",null,{"$f":"IF(Formato!$C67=\"\",\"\",(Formato!$C67/$C$115)*100)","v":""}]
[null,"d. Declaraciones patrimoniales",null,{"$f":"IF(Formato!$C68=\"\",\"\",(Formato!$C68/$C$115)*100)","v":""}]
[null,"e. Otros",null,{"$f":"IF(Formato!$C69=\"\",\"\",(Formato!$C69/$C$115)*100)","v":""}]
["17. Medio ambiente",null,null,{"$f":"IF(Formato!$C70=\"\",\"\",(Formato!$C70/$C$115)*100)","v":""}]
["18. Programas de subsidios",null,{"$f":"SUM(C72:C77)","v":0},{"$f":"IF(C71=0,\"\",(C71/$C$115)*100)","v":""}]
[null,"a. Diseño y planeación",null,{"$f":"IF(Formato!$C72=\"\",\"\",(Formato!$C72/$C$115)*100)","v":""}]
[null,"b. Presupuesto o avance financiero",null,{"$f":"IF(Formato!$C73=\"\",\"\",(Formato!$C73/$C$115)*100)","v":""}]
[null,"c. Criterios de acceso y esquema de operación",null,{"$f":"IF(Formato!$C74=\"\",\"\",(Formato!$C74/$C$115)*100)","v":""}]
[null,"d. Padrón de beneficiarios",null,{"$f":"IF(Formato!$C75=\"\",\"\",(Formato!$C75/$C$115)*100)","v":""}]
[null,"e. Resultados, indicadores de impacto, informes, evaluaciones",null,{"$f":"IF(Formato!$C76=\"\",\"\",(Formato!$C76/$C$115)*100)","v":""}]
[null,"f. Otros",null,{"$f":"IF(Formato!$C77=\"\",\"\",(Formato!$C77/$C$115)*100)","v":""}]
["19. Programas sociales",null,{"$f":"SUM(C79:C84)","v":0},{"$f":"IF(C78=0,\"\",(C78/$C$115)*100)","v":""}]
[null,"a. Diseño y planeación",null,{"$f":"IF(Formato!$C79=\"\",\"\",(Formato!$C79/$C$115)*100)","v":""}]
[null,"b. Presupuesto o avance financiero",null,{"$f":"IF(Formato!$C80=\"\",\"\",(Formato!$C80/$C$115)*100)","v":""}]
[null,"c. Criterios de acceso y esquema de operación",null,{"$f":"IF(Formato!$C81=\"\",\"\",(Formato!$C81/$C$115)*100)","v":""}]
[null,"d. Padrón de beneficiarios",null,{"$f":"IF(Formato!$C82=\"\",\"\",(Formato!$C82/$C$115)*100)","v":""}]
[null,"e. Resultados, indicadores de impacto, informes, evaluaciones",null,{"$f":"IF(Formato!$C83=\"\",\"\",(Formato!$C83/$C$115)*100)","v":""}]
[null,"f. Otros",null,{"$f":"IF(Formato!$C84=\"\",\"\",(Formato!$C84/$C$115)*100)","v":""}]
["20. Salud",null,{"$f":"SUM(C86:C88)","v":0},{"$f":"IF(C85=0,\"\",(C85/$C$115)*100)","v":""}]
[null,"a. Pandemia",null,{"$f":"IF(Formato!$C86=\"\",\"\",(Formato!$C86/$C$115)*100)","v":""}]
[null,"b. Disponibilidad y abasto de medicamentos",null,{"$f":"IF(Formato!$C87=\"\",\"\",(Formato!$C87/$C$115)*100)","v":""}]
[null,"c. Otros",null,{"$f":"IF(Formato!$C88=\"\",\"\",(Formato!$C88/$C$115)*100)","v":""}]
["21. Sanciones",null,{"$f":"SUM(C90:C91)","v":0},{"$f":"IF(C89=0,\"\",(C89/$C$115)*100)","v":""}]
[null,"a. Servidores públicos",null,{"$f":"IF(Formato!$C90=\"\",\"\",(Formato!$C90/$C$115)*100)","v":""}]
[null,"b. Particulares",null,{"$f":"IF(Formato!$C91=\"\",\"\",(Formato!$C91/$C$115)*100)","v":""}]
["22. Seguridad Nacional",null,{"$f":"SUM(C93:C99)","v":0},{"$f":"IF(C92=0,\"\",(C92/$C$115)*100)","v":""}]
[null,"a. Estrateias de seguridad nacional",null,{"$f":"IF(Formato!$C93=\"\",\"\",(Formato!$C93/$C$115)*100)","v":""}]
[null,"b. instalaciones estratégicas",null,{"$f":"IF(Formato!$C94=\"\",\"\",(Formato!$C94/$C$115)*100)","v":""}]
[null,"c. Operación de instituciones",null,{"$f":"IF(Formato!$C95=\"\",\"\",(Formato!$C95/$C$115)*100)","v":""}]
[null,"d. Adquisiciones",null,{"$f":"IF(Formato!$C96=\"\",\"\",(Formato!$C96/$C$115)*100)","v":""}]
[null,"e. Documentos oficiales",null,{"$f":"IF(Formato!$C97=\"\",\"\",(Formato!$C97/$C$115)*100)","v":""}]
[null,"f. Normas",null,{"$f":"IF(Formato!$C98=\"\",\"\",(Formato!$C98/$C$115)*100)","v":""}]
[null,"g. Otros",null,{"$f":"IF(Formato!$C99=\"\",\"\",(Formato!$C99/$C$115)*100)","v":""}]
["23. Sentencias y resoluciones",null,null,{"$f":"IF(Formato!$C100=\"\",\"\",(Formato!$C100/$C$115)*100)","v":""}]
["24. Violaciones a Derechos Humanos",null,{"$f":"SUM(C102:C109)","v":0},{"$f":"IF(C101=0,\"\",(C101/$C$115)*100)","v":""}]
[null,"a. Desaparición forzada",null,{"$f":"IF(Formato!$C102=\"\",\"\",(Formato!$C102/$C$115)*100)","v":""}]
[null,"b. Tortura",null,{"$f":"IF(Formato!$C103=\"\",\"\",(Formato!$C103/$C$115)*100)","v":""}]
[null,"c. Libertad de expresión",null,{"$f":"IF(Formato!$C104=\"\",\"\",(Formato!$C104/$C$115)*100)","v":""}]
[null,"d. Masacres",null,{"$f":"IF(Formato!$C105=\"\",\"\",(Formato!$C105/$C$115)*100)","v":""}]
[null,"e. Casos espécificos de violaciones a derechos humanos",null,{"$f":"IF(Formato!$C106=\"\",\"\",(Formato!$C106/$C$115)*100)","v":""}]
[null,"f. Violencia política",null,{"$f":"IF(Formato!$C107=\"\",\"\",(Formato!$C107/$C$115)*100)","v":""}]
[null,"g. Acceso a la justicia",null,{"$f":"IF(Formato!$C108=\"\",\"\",(Formato!$C108/$C$115)*100)","v":""}]
[null,"h. Otros.",null,{"$f":"IF(Formato!$C109=\"\",\"\",(Formato!$C109/$C$115)*100)","v":""}]
["25. Otros más frecuentes (especificar)",null,"Temática de preguntas frecuentes (Seleccionar)"]
[null,"a) Pregunta más frecuente"]
[null,"b) Segunda pregunta más frecuente"]
[null,"c) Tercera pregunta más frecuente"]
[null,"d) Cuarta pregunta más frecuente"]
["T o t a l (SIN OTROS MÁS FRECUENTES)",null,{"$f":"SUM(C8,C13,C14,C18,C19,C29,C30,C31,C36,C37,C38,C39,C44,C49,C56,C64,C71,C70,C78,C85,C89,C92,C100,C101)","v":32},{"$f":"IF(C115=0,\"\",(C115/$C$115)*100)","v":100}]

{"sheet":"Catálogo","index":1,"n_rows":844,"n_cols":7,"rows_kept":844,"cut":false,"hidden":true,"merged":[]}
["Seleccione el nombre del sujeto obligado","Cve","DGEN","Sector","Seleccionar","Seleccionar"]
["9/11 de la recaudación por concepto de las cuotas establecidas en el artículo 2°A. Fracción II de la Ley del Impuesto Especial sobre Producción y Servicios","06005","DGEAPCTA","Fideicomisos y fondos públicos","4° 2020","Si","Actividades de la institución "]
["Administración de los recursos producto de la venta de publicaciones de la Suprema Corte para el financiamiento de nuevas publicaciones y cualquier proyecto de interés para el fideicomitente","03301","DGEPLJ","Fideicomisos y fondos públicos","1° 2021","No","Auditorias al ejercicio presupuestal"]
["Administración del Patrimonio de la Beneficencia Pública (*)","12001","DGEAPCTA","Ejecutivo","2° 2021",null,"Datos personales"]
["Administración Portuaria Integral de Altamira, S.A. de C.V.","09176","DGOAEEF","Ejecutivo","3° 2021",null,"Estructura orgánica"]
["Administración Portuaria Integral de Coatzacoalcos, S.A. de C.V.","09183","DGOAEEF","Ejecutivo","4° 2021",null,"Gastos"]
["Administración Portuaria Integral de Dos Bocas, S.A. de C.V.","09180","DGOAEEF","Ejecutivo","1° 2022",null,"Igualdad de Género"]
["Administración Portuaria Integral de Ensenada, S.A. de C.V.","09169","DGOAEEF","Ejecutivo","2° 2022",null,"Información generada o administrada por el sujeto obligado"]
["Administración Portuaria Integral de Guaymas, S.A. de C.V.","09177","DGOAEEF","Ejecutivo","3° 2022",null,"Información referente a contratos celebrados"]
["Administración Portuaria Integral de Lázaro Cárdenas, S.A. de C.V.","09178","DGOAEEF","Ejecutivo","4° 2022",null,"Otros Rubros"]
["Administración Portuaria Integral de Manzanillo, S.A. de C.V.","09179","DGOAEEF","Ejecutivo","1° 2023",null,"Otros Rubros Generales"]
["Administración Portuaria Integral de Mazatlán, S.A. de C.V.","09171","DGOAEEF","Ejecutivo","2° 2023",null,"Programas de subsidio"]
["Administración Portuaria Integral de Progreso, S.A. de C.V.","09172","DGOAEEF","Ejecutivo","3° 2023",null,"Remuneraciones"]
["Administración Portuaria Integral de Puerto Madero, S.A. de C.V.","09186","DGOAEEF","Ejecutivo","4° 2023",null,"Seguridad Nacional"]
["Administración Portuaria Integral de Puerto Vallarta, S.A. de C.V.","09173","DGOAEEF","Ejecutivo","1° 2024",null,"Violaciones a Derechos Humanos"]
["Administración Portuaria Integral de Salina Cruz, S.A. de C.V.","09184","DGOAEEF","Ejecutivo","2° 2024"]
["Administración Portuaria Integral de Tampico, S.A. de C.V.","09181","DGOAEEF","Ejecutivo","3° 2024"]
["Administración Portuaria Integral de Topolobampo, S.A. de C.V.","09174","DGOAEEF","Ejecutivo","4° 2024"]
["Administración Portuaria Integral de Tuxpan, S.A. de C.V.","09175","DGOAEEF","Ejecutivo"]
["Administración Portuaria Integral de Veracruz, S.A. de C.V.","09182","DGOAEEF","Ejecutivo"]
["Aeropuerto Internacional de la Ciudad de México, S.A. de C.V.","09451","DGOAEEF","Ejecutivo"]
["Aeropuerto Internacional Felipe Ángeles, S.A. de C.V.",7003,"DGEAPCTA","Ejecutivo"]
["Aeropuertos y Servicios Auxiliares","09085","DGEPPOED","Ejecutivo"]
["Agencia Espacial Mexicana","09087","DGEPPOED","Ejecutivo"]
["Agencia Federal de Aviación Civil","09012","DGEAPCTA","Ejecutivo"]
["Agencia Mexicana de Cooperación Internacional para el Desarrollo (*)","05100","DGEAPCTA","Ejecutivo"]
["Agencia Nacional de Seguridad Industrial y de Protección al Medio Ambiente del Sector Hidrocarburos","16211","DGOAEEF","Ejecutivo"]
["Agencia Reguladora del Transporte Ferroviario (*)","09010","DGEAPCTA","Ejecutivo"]
["Agroasemex, S.A.","06084","DGOAEEF","Ejecutivo"]
["Almacenadora Sur, S.A.","64405","DGEPPOED","Fideicomisos y fondos públicos"]
["Archivo General de la Nación","04950","DGEPPOED","Ejecutivo"]
["Asociación Autónoma del Personal Académico de la Universidad Nacional Autónoma de México","60100","DGEALSUPFM","Sindicatos"]
["Asociación Sindical de Oficiales de Máquinas de la Marina Mercante Nacional","60267","DGEALSUPFM","Sindicatos"]
["Auditoría Superior de la Federación","01100","DGEPLJ","Legislativo"]
["Autoridad Educativa Federal en la Ciudad de México","25101","DGEAPCTA","Ejecutivo"]
["Bachillerato general en sus modalidades no escolarizada y mixta","11007","DGEAPCTA","Fideicomisos y fondos públicos"]
["Banco de México","61100","DGOAEEF","Órganos Autónomos"]
["Banco del Bienestar ","06800","DGOAEEF","Ejecutivo"]
["Banco Nacional de Comercio Exterior, S.N.C.","06305","DGOAEEF","Ejecutivo"]
["Banco Nacional de Obras y Servicios Públicos, S.N.C.","06320","DGOAEEF","Ejecutivo"]
["Banco Nacional del Ejército, Fuerza Aérea y Armada, S.N.C.","06325","DGOAEEF","Ejecutivo"]
["Cámara de Diputados","01200","DGEPLJ","Legislativo"]
["Caminos y Puentes Federales de Ingresos y Servicios Conexos","09120","DGEPPOED","Ejecutivo"]
["Casa de Moneda de México","06363","DGEPPOED","Ejecutivo"]
["Centro de Capacitación Cinematográfica, A.C.","11063","DGOAEEF","Ejecutivo"]
["Centro de Enseñanza Técnica Industrial","11065","DGEPPOED","Ejecutivo"]
["Centro de Estudios para la Preparación y Evaluación Socioeconómica de Proyectos (CEPEP)","06006","DGEAPCTA","Fideicomisos y fondos públicos"]
["Centro de Ingeniería y Desarrollo Industrial","11121","DGEPPOED","Ejecutivo"]
["Centro de Investigación Científica de Yucatán, A.C.","11108","DGOAEEF","Ejecutivo"]
["Centro de Investigación Científica y de Educación Superior de Ensenada, Baja California","11101","DGEPPOED","Ejecutivo"]
["Centro de Investigación en Alimentación y Desarrollo, A.C.","11083","DGOAEEF","Ejecutivo"]
["Centro de Investigación en Ciencias de Información Geoespacial","11080","DGOAEEF","Ejecutivo"]
["Centro de Investigación en Matemáticas, A.C.","11102","DGOAEEF","Ejecutivo"]
["Centro de Investigación en Materiales Avanzados, S.C.","11088","DGOAEEF","Ejecutivo"]
["Centro de Investigación en Química Aplicada","11111","DGEPPOED","Ejecutivo"]
["Centro de Investigación y Asistencia en Tecnología y Diseño del Estado de Jalisco, A.C.","11103","DGOAEEF","Ejecutivo"]
["Centro de Investigación y de Estudios Avanzados del Instituto Politécnico Nacional","11085","DGEPPOED","Ejecutivo"]
["Centro de Investigación y Desarrollo Tecnológico en Electroquímica, S.C.","11106","DGOAEEF","Ejecutivo"]
["Centro de Investigación y Docencia Económicas, A.C.","11090","DGOAEEF","Ejecutivo"]
["Centro de Investigaciones Biológicas del Noroeste, S.C.","11107","DGOAEEF","Ejecutivo"]
["Centro de Investigaciones en Óptica, A.C.","11110","DGOAEEF","Ejecutivo"]
["Centro de Investigaciones y Estudios Superiores en Antropología Social","11100","DGEPPOED","Ejecutivo"]
["Centro de Producción de Programas Informativos y Especiales (*)","04001","DGEAPCTA","Ejecutivo"]
["Centro Federal de Conciliación y Registro Laboral",14112,"DGEALSUPFM","Ejecutivo"]
["Centro Nacional de Control de Energía","11205","DGEPPOED","Ejecutivo"]
["Centro Nacional de Control del Gas Natural","18112","DGEPPOED","Ejecutivo"]
["Centro Nacional de Equidad de Género y Salud Reproductiva (*)","12002","DGEAPCTA","Ejecutivo"]
["Centro Nacional de Excelencia Tecnológica en Salud (*)","12003","DGEAPCTA","Ejecutivo"]
["Centro Nacional de Inteligencia","04100","DGEAPCTA","Ejecutivo"]
["Centro Nacional de la Transfusión Sanguínea (*)","12004","DGEAPCTA","Ejecutivo"]
["Centro Nacional de Metrología","10095","DGEPPOED","Ejecutivo"]
["Centro Nacional de Prevención de Desastres","04130","DGEAPCTA","Ejecutivo"]
["Centro Nacional de Programas Preventivos y Control de Enfermedades (*)","12005","DGEAPCTA","Ejecutivo"]
["Centro Nacional de Trasplantes (*)","12006","DGEAPCTA","Ejecutivo"]
["Centro Nacional para la Prevención y el Control del VIH/SIDA (*)","12008","DGEAPCTA","Ejecutivo"]
["Centro Nacional para la Salud de la Infancia y la Adolescencia (*)","12009","DGEAPCTA","Ejecutivo"]
["Centro Regional de Alta Especialidad de Chiapas","12090","DGEPPOED","Ejecutivo"]
["Centros de Integración Juvenil, A.C.","12100","DGOAEEF","Ejecutivo"]
["CIATEC, A.C. \"Centro de Innovación Aplicada en Tecnologías Competitivas\"","11105","DGOAEEF","Ejecutivo"]
["CIATEQ, A.C. Centro de Tecnología Avanzada","11104","DGOAEEF","Ejecutivo"]
["Colegio de Bachilleres","11115","DGEPPOED","Ejecutivo"]
["Colegio de Postgraduados","08140","DGEPPOED","Ejecutivo"]
["Colegio Nacional de Educación Profesional Técnica","11125","DGEPPOED","Ejecutivo"]
["Colegio Superior Agropecuario del Estado de Guerrero","08609","DGEAPCTA","Ejecutivo"]
["Comisión de Apelación y Arbitraje del Deporte (*)","11001","DGEAPCTA","Ejecutivo"]
["Comisión de Operación y Fomento de Actividades Académicas del Instituto Politécnico Nacional","11135","DGEPPOED","Ejecutivo"]
["Comisión Ejecutiva de Atención a Víctimas","00633","DGEPPOED","Ejecutivo"]
["Comisión Federal de Competencia Económica","10111","DGOAEEF","Órganos Autónomos"]
["Comisión Federal de Electricidad","18164","DGOAEEF","Ejecutivo"]
["Comisión Federal para la Protección contra Riesgos Sanitarios","12151","DGEAPCTA","Ejecutivo"]
["Comisión Nacional Bancaria y de Valores","06100","DGEAPCTA","Ejecutivo"]
["Comisión Nacional contra las Adicciones (*)","12007","DGEAPCTA","Ejecutivo"]
["Comisión Nacional de Acuacultura y Pesca","08197","DGEAPCTA","Ejecutivo"]
["Comisión Nacional de Arbitraje Médico","42207","DGEAPCTA","Ejecutivo"]
["Comisión Nacional de Áreas Naturales Protegidas","16151","DGEAPCTA","Ejecutivo"]
["Comisión Nacional de Bioética (*)","12010","DGEAPCTA","Ejecutivo"]
["Comisión Nacional de Búsqueda de Personas (*)","04016","DGEAPCTA","Ejecutivo"]
["Comisión Nacional de Cultura Física y Deporte","11131","DGEPPOED","Ejecutivo"]
["Comisión Nacional de Hidrocarburos","18001","DGOAEEF","Ejecutivo"]
["Comisión Nacional de las Zonas Áridas","20090","DGEPPOED","Ejecutivo"]
["Comisión Nacional de Libros de Texto Gratuitos","11137","DGEPPOED","Ejecutivo"]
["Comisión Nacional de los Derechos Humanos","35100","DGOAEEF","Órganos Autónomos"]
["Comisión Nacional de los Salarios Mínimos","14075","DGEPPOED","Ejecutivo"]
["Comisión Nacional de Mejora Regulatoria","10141","DGOAEEF","Ejecutivo"]
["Comisión Nacional de Seguridad Nuclear y Salvaguardias","18100","DGOAEEF","Ejecutivo"]
["Comisión Nacional de Seguros y Fianzas","06111","DGEAPCTA","Ejecutivo"]
["Comisión Nacional de Vivienda","20120","DGEPPOED","Ejecutivo"]
["Comisión Nacional del Agua","16101","DGEAPCTA","Ejecutivo"]
["Comisión Nacional del Sistema de Ahorro para el Retiro","06121","DGEAPCTA","Ejecutivo"]
["Comisión Nacional Forestal","16161","DGEPPOED","Ejecutivo"]
["Comisión Nacional para el Uso Eficiente de la Energía","18191","DGOAEEF","Ejecutivo"]
["Comisión Nacional para la Mejora Continua de la Educación","11323","DGEPPOED","Ejecutivo"]
["Comisión Nacional para la Protección y Defensa de los Usuarios de Servicios Financieros","06370","DGEPPOED","Ejecutivo"]
["Comisión Nacional para Prevenir y Erradicar la Violencia Contra las Mujeres (*)","04002","DGEAPCTA","Ejecutivo"]
["Comisión Reguladora de Energía","18111","DGOAEEF","Ejecutivo"]
["Comité de Participación Ciudadana del Sistema Nacional Anticorrupción",47002,"DGEPPOED","Ejecutivo"]
["Comité Nacional para el Desarrollo Sustentable de la Caña de Azúcar (*)","08001","DGEAPCTA","Ejecutivo"]
["Compañía Mexicana de Exploraciones, S.A. de C.V.","18200","DGOAEEF","Ejecutivo"]
["Compañía Operadora del Centro Cultural y Turístico de Tijuana, S.A. de C.V.","11148","DGOAEEF","Ejecutivo"]
["Complemento del Préstamo Especial para el Ahorro (PEA) y préstamos de corto y mediano plazo para jubilados bajo el plan de beneficio definido","06781","DGOAEEF","Fideicomisos y fondos públicos"]
["Consejería Jurídica del Ejecutivo Federal","02200","DGEAPCTA","Ejecutivo"]
["Consejo de la Judicatura Federal","03200","DGEPLJ","Judicial"]
["Consejo de Promoción Turística de México, S.A. de C. V.",21355,"DGEPPOED","Ejecutivo"]
["Consejo Nacional de Ciencia y Tecnología","11112","DGEPPOED","Ejecutivo"]
["Consejo Nacional de Evaluación de la Política de Desarrollo Social","20237","DGEPPOED","Ejecutivo"]
["Consejo Nacional de Fomento Educativo","11150","DGEPPOED","Ejecutivo"]
["Consejo Nacional para el Desarrollo y la Inclusión de las Personas con Discapacidad","00634","DGEPPOED","Ejecutivo"]
["Consejo Nacional para Prevenir la Discriminación","04410","DGEPPOED","Ejecutivo"]
["Conservaduría de Palacio Nacional","02101","DGEAPCTA","Fideicomisos y fondos públicos"]
["Contrato de fideicomiso con número 108601 con el Banco Nacional del Ejército, Fuerza Aérea y Armada, S.N.C. (BANJERCITO), para la administración del Fondo por concepto de las aportaciones para el cumplimiento del programa del pasivo laboral","22201","DGEPPOED","Fideicomisos y fondos públicos"]
["Contrato de mandato para el pago de haberes de retiro, pensiones y compensaciones","07151","DGEPPOED","Fideicomisos y fondos públicos"]
["Contrato especifico abierto para la construcción y suministro de remolcadores, chalanes y embarcaciones multipropósito para la flota menor de Pemex Refinación","18681","DGOAEEF","Fideicomisos y fondos públicos"]
["Convenio de cooperación para la operación del Programa de Educación a Distancia","11008","DGEAPCTA","Fideicomisos y fondos públicos"]
["Convenio de cooperación para la operación del Programa de Educación a Distancia II","11009","DGEAPCTA","Fideicomisos y fondos públicos"]
["Convenio específico para la operación y desarrollo del Programa SEPA-Ingles","11010","DGEAPCTA","Fideicomisos y fondos públicos"]
["Coordinación General @prende.mx (*)","11002","DGEAPCTA","Ejecutivo"]
["Coordinación General de la Comisión Mexicana de Ayuda a Refugiados","04220","DGEAPCTA","Ejecutivo"]
["Coordinación Nacional Antisecuestro (*)","04003","DGEAPCTA","Ejecutivo"]
["Coordinación Nacional de Becas para el Bienestar Benito Juárez","20001","DGEAPCTA","Ejecutivo"]
["Coordinación para la Atención Integral de la Migración en la Frontera Sur (*)","04004","DGEAPCTA","Ejecutivo"]
["Corporación de Servicios al Turista Ángeles Verdes (*)","21001","DGEAPCTA","Ejecutivo"]
["Corporación Mexicana de Investigación en Materiales, S.A. de C.V.","11163","DGOAEEF","Ejecutivo"]
["Corredor Interoceánico del Istmo deTehuantepec","09008","DGEPPOED","Ejecutivo"]
["Diconsa, S.A. de C.V.","20150","DGOAEEF","Ejecutivo"]
["Educal, S.A. de C.V.","11186","DGOAEEF","Ejecutivo"]
["El 0.136 por ciento de la RFP","06007","DGEAPCTA","Fideicomisos y fondos públicos"]
["El Colegio de la Frontera Norte, A.C.","11075","DGOAEEF","Ejecutivo"]
["El Colegio de la Frontera Sur","11109","DGEPPOED","Ejecutivo"]
["El Colegio de México, A.C.","11120","DGOAEEF","Ejecutivo"]
["El Colegio de Michoacán, A.C.","11187","DGOAEEF","Ejecutivo"]
["El Colegio de San Luis, A.C.","53123","DGOAEEF","Ejecutivo"]
["Estudios Churubusco Azteca, S.A.","11195","DGOAEEF","Ejecutivo"]
["Exportadora de Sal, S.A. de C.V.","10101","DGOAEEF","Ejecutivo"]
["Extinta Luz y Fuerza del Centro","06814","DGEPPOED","Ejecutivo"]
["F/11025590 (Antes 4483-0) \"Durango-Yerbanis\"","09123","DGEPPOED","Fideicomisos y fondos públicos"]
["F/1516 ATM (Antes 639-00-5) Tijuana-Tecate","09127","DGEPPOED","Fideicomisos y fondos públicos"]
["F/21935-2 \"Kantunil-Cancún\"","09124","DGEPPOED","Fideicomisos y fondos públicos"]
["F/31293-4 Libramiento Oriente de San Luis Potosí","09122","DGEPPOED","Fideicomisos y fondos públicos"]
["F/689 San Martín Texmelucan-Tlaxcala-El Molinito","09131","DGEPPOED","Fideicomisos y fondos públicos"]
["Ferrocarril del Istmo de Tehuantepec, S.A. de C.V.","09189","DGOAEEF","Ejecutivo"]
["Ferrocarriles Nacionales de México","06815","DGEPPOED","Ejecutivo"]
["Fid. 122.- Benjamín Hill Trabajadores F.F.C.C. Sonora-Baja California","09003","DGEAPCTA","Fideicomisos y fondos públicos"]
["Fid. 1327.- Gobierno Federal, Programa de vivienda para magistrados y jueces del Poder Judicial Federal","06008","DGEAPCTA","Fideicomisos y fondos públicos"]
["Fid. 2065.- Plan de pensiones de los jubilados de BANOBRAS","06322","DGOAEEF","Fideicomisos y fondos públicos"]
["Fid. 2160 Fondo de pensiones de contribución definida","06323","DGOAEEF","Fideicomisos y fondos públicos"]
["Fid. 285.-Promotora de desarrollo urbano.- Fraccionamiento Bosques del Valle Coacalco","06003","DGOAEEF","Fideicomisos y fondos públicos"]
["Fid. 294.- Colonia Petrolera José Escandón","18672","DGOAEEF","Fideicomisos y fondos públicos"]
["Fid. 351.- Unidad Morazán","06001","DGOAEEF","Fideicomisos y fondos públicos"]
["Fideicomiso 11029386 (antes SM940243) Gómez Palacio-Cuencamé-Yerbanis","09132","DGEPPOED","Fideicomisos y fondos públicos"]
["Fideicomiso 14780-8 Fondo Nacional para Escuelas de Calidad","11019","DGEAPCTA","Fideicomisos y fondos públicos"]
["Fideicomiso 148687 \"Fondo para préstamos a corto plazo para apoyar a los trabajadores de CAPUFE en casos de contingencia\"","09126","DGEPPOED","Fideicomisos y fondos públicos"]
["Fideicomiso 1725-1-Para integrar diversos fondos (Patrimonial)","11091","DGOAEEF","Fideicomisos y fondos públicos"]
["Fideicomiso 1738-3-Ciencia y Tecnología","11092","DGOAEEF","Fideicomisos y fondos públicos"]
["Fideicomiso 1936 Fondo Nacional de Infraestructura","06321","DGOAEEF","Fideicomisos y fondos públicos"]
["Fideicomiso 2003 \"Fondo de Desastres Naturales\"","06010","DGEAPCTA","Fideicomisos y fondos públicos"]
["Fideicomiso 2165-8 \"Fondo para liquidación de trabajadores de la red FONADIN\" (Antes FARAC)","09125","DGEPPOED","Fideicomisos y fondos públicos"]
["Fideicomiso 5012-6 FERRONALESJUB (para el pago de pensiones jubilatorias a los trabajadores de Ferrocarriles Nacionales de México) ","06816","DGEPPOED","Fideicomisos y fondos públicos"]
["Fideicomiso a favor de los hijos del personal adscrito al Estado Mayor Presidencial","02102","DGEAPCTA","Fideicomisos y fondos públicos"]
["Fideicomiso Ángeles Verdes","21003","DGEAPCTA","Fideicomisos y fondos públicos"]
["Fideicomiso Barrancas del Cobre","21162","DGOAEEF","Fideicomisos y fondos públicos"]
["Fideicomiso Centro de Ingeniería y Desarrollo Industrial No. 135826-8","11122","DGEPPOED","Fideicomisos y fondos públicos"]
["Fideicomiso Centro de Investigación en Alimentación y Desarrollo, A.C. (CIAD)","11184","DGOAEEF","Fideicomisos y fondos públicos"]
["Fideicomiso Centro de Investigaciones Biológicas del Noroeste, S.C.","11207","DGOAEEF","Fideicomisos y fondos públicos"]
["Fideicomiso Centro de Investigaciones en Óptica, A.C. No. 040026-8","11180","DGOAEEF","Fideicomisos y fondos públicos"]
["Fideicomiso de administración de gastos previos","18167","DGOAEEF","Fideicomisos y fondos públicos"]
["Fideicomiso de administración de teatros y salas de espectáculos IMSS","00642","DGEPPOED","Fideicomisos y fondos públicos"]
["Fideicomiso de administración e inversión para el establecimiento y operación de los fondos de apoyo a la investigación científica y desarrollo tecnológico del INIFAP","08171","DGEPPOED","Fideicomisos y fondos públicos"]
["Fideicomiso de administración e Inversión para el manejo del fondo de ahorro de los trabajadores del Fondo de Cultura Económica","11250","DGEPPOED","Fideicomisos y fondos públicos"]
["Fideicomiso de administración e inversión para pensiones de los trabajadores","14221","DGEPPOED","Fideicomisos y fondos públicos"]
["Fideicomiso de administración para el otorgamiento y primas de antigüedad","06802","DGOAEEF","Fideicomisos y fondos públicos"]
["Fideicomiso de administración y garantía complementaria Fondo 95","15001","DGEAPCTA","Fideicomisos y fondos públicos"]
["Fideicomiso de Administración y Pago CENAGAS-BANCOMEXT número 10637",18114,"DGEPPOED","Fideicomisos y fondos públicos"]
["Fideicomiso de administración y traslativo de dominio (Obras de Infraestructura para el Sistema Eléctrico Federal)","18168","DGOAEEF","Fideicomisos y fondos públicos"]
["Fideicomiso de administración, inversión y pago número 013 ANP Valle de Bravo","16152","DGEAPCTA","Fideicomisos y fondos públicos"]
["Fideicomiso de apoyo a deudos de militares fallecidos o a militares que hayan adquirido una inutilidad en primera categoría en actos del servicio considerado de alto riesgo","07001","DGEAPCTA","Fideicomisos y fondos públicos"]
["Fideicomiso de apoyo a la investigación científica y desarrollo tecnológico del Colegio de Postgraduados","08141","DGEPPOED","Fideicomisos y fondos públicos"]
["Fideicomiso de apoyo a las exportaciones FIDAPEX","06314","DGOAEEF","Fideicomisos y fondos públicos"]
["Fideicomiso de apoyo a los propietarios rurales en Chiapas (FIAPAR)","15002","DGEAPCTA","Fideicomisos y fondos públicos"]
["Fideicomiso de apoyos médicos complementarios y de apoyo económico extraordinario para los servidores públicos del Poder Judicial de la Federación, con excepción de los de la Suprema Corte de Justicia de la Nación","03102","DGEPLJ","Fideicomisos y fondos públicos"]
["Fideicomiso de beneficios sociales (FIBESO)","00643","DGEPPOED","Fideicomisos y fondos públicos"]
["Fideicomiso de capital emprendedor","06783","DGOAEEF","Fideicomisos y fondos públicos"]
["Fideicomiso de ciencia y tecnología del Colegio de Michoacán, A. C.","11188","DGOAEEF","Fideicomisos y fondos públicos"]
["Fideicomiso de contragarantía para el financiamiento empresarial","06784","DGOAEEF","Fideicomisos y fondos públicos"]
["Fideicomiso de Defensa Legal y Asistencia Legal","06795","DGOAEEF","Fideicomisos y fondos públicos"]
["Fideicomiso de Fomento Industrial LANFI",10002,"DGEAPCTA","Fideicomisos y fondos públicos"]
["Fideicomiso de Fomento Minero","10102","DGOAEEF","Fideicomisos y fondos públicos"]
["Fideicomiso de Formación y Capacitación para el Personal de la Marina Mercante Nacional","09225","DGOAEEF","Fideicomisos y fondos públicos"]
["Fideicomiso de inversión y administración de primas de antigüedad de los trabajadores","14222","DGEPPOED","Fideicomisos y fondos públicos"]
["Fideicomiso de investigación científica y desarrollo tecnológico No. 1750-2","11291","DGEPPOED","Fideicomisos y fondos públicos"]
["Fideicomiso de investigación el Colegio de la Frontera Norte","11076","DGOAEEF","Fideicomisos y fondos públicos"]
["Fideicomiso de investigación en salud","00644","DGEPPOED","Fideicomisos y fondos públicos"]
["Fideicomiso de investigación para el desarrollo del programa de aprovechamiento del atún y protección de delfines y otros en torno a especies acuáticas protegidas","08200","DGEPPOED","Fideicomisos y fondos públicos"]
["Fideicomiso de la Comisión Nacional de Hidrocarburos","18002","DGOAEEF","Fideicomisos y fondos públicos"]
["Fideicomiso de la Comisión Reguladora de Energía","18113","DGOAEEF","Fideicomisos y fondos públicos"]
["Fideicomiso de los Sistemas Normalizado de Competencia Laboral y de Certificación de Competencia Laboral","11225","DGOAEEF","Fideicomisos y fondos públicos"]
["Fideicomiso de Microcréditos para el Bienestar",10006,"DGEAPCTA","Fideicomisos y fondos públicos"]
["Fideicomiso de obligaciones laborales del CIMAT","11302","DGOAEEF","Fideicomisos y fondos públicos"]
["Fideicomiso de pensiones del sistema BANRURAL","06821","DGEPPOED","Fideicomisos y fondos públicos"]
["Fideicomiso de pensiones, del Fondo de Garantía y Fomento para la Agricultura, Ganadería y Avicultura","06604","DGOAEEF","Fideicomisos y fondos públicos"]
["Fideicomiso de proyectos de investigación del Centro de Investigación Científica y de Educación Superior de Ensenada, B.C.","11201","DGEPPOED","Fideicomisos y fondos públicos"]
["Fideicomiso de reserva para el pago de pensiones o jubilaciones y primas de antigüedad","21163","DGOAEEF","Fideicomisos y fondos públicos"]
["Fideicomiso de Riesgo Compartido","08331","DGOAEEF","Fideicomisos y fondos públicos"]
["Fideicomiso del fondo de cobertura social de telecomunicaciones","09005","DGEAPCTA","Fideicomisos y fondos públicos"]
["Fideicomiso del Programa de escuelas de excelencia para abatir el rezago educativo","11011","DGEAPCTA","Fideicomisos y fondos públicos"]
["Fideicomiso del Programa Nacional Financiero al Microempresario","10003","DGEAPCTA","Fideicomisos y fondos públicos"]
["Fideicomiso DIF-Bosques de las Lomas","12013","DGEPPOED","Fideicomisos y fondos públicos"]
["Fideicomiso E-México","09006","DGEAPCTA","Fideicomisos y fondos públicos"]
["Fideicomiso fondo de apoyo a los trabajadores de confianza de la Comisión Nacional Bancaria y de Valores","06201","DGEAPCTA","Fideicomisos y fondos públicos"]
["Fideicomiso Fondo de Apoyo a Municipios","06324","DGOAEEF","Fideicomisos y fondos públicos"]
["Fideicomiso fondo de estabilización de los ingresos presupuestarios","06011","DGEAPCTA","Fideicomisos y fondos públicos"]
["Fideicomiso fondo de inversión y estímulos al cine (FIDECINE)","11313","DGEPPOED","Fideicomisos y fondos públicos"]
["Fideicomiso fondo de investigación científica y desarrollo tecnológico del IPN","11172","DGEAPCTA","Fideicomisos y fondos públicos"]
["Fideicomiso Fondo Nacional de Fomento Ejidal","15100","DGOAEEF","Fideicomisos y fondos públicos"]
["Fideicomiso Fondo Nacional de Habitaciones Populares","20285","DGOAEEF","Fideicomisos y fondos públicos"]
["Fideicomiso fondo para la producción cinematográfica de calidad (FOPROCINE)","11314","DGEPPOED","Fideicomisos y fondos públicos"]
["Fideicomiso inversión y administración","11203","DGEPPOED","Fideicomisos y fondos públicos"]
["Fideicomiso irrevocable de administración \"Centro Cultural Santo Domingo\", Oaxaca","11012","DGEAPCTA","Fideicomisos y fondos públicos"]
["Fideicomiso irrevocable de administración e inversión del fondo de pensiones o jubilaciones o primas de antigüedad de los trabajadores del Banco Nacional del Ejército, Fuerza Aérea y Armada, S.N.C.","06326","DGOAEEF","Fideicomisos y fondos públicos"]
["Fideicomiso irrevocable de administración e inversión Niña del Milenio","00645","DGEPPOED","Fideicomisos y fondos públicos"]
["Fideicomiso irrevocable de administración 'Museo Regional de Guadalupe', Zacatecas","11153","DGEAPCTA","Fideicomisos y fondos públicos"]
["Fideicomiso irrevocable de administración y fuente de pago número CIB/2064","09128","DGEPPOED","Fideicomisos y fondos públicos"]
["Fideicomiso irrevocable de administración y fuente de pago, No. 1928.- para apoyar el proyecto de saneamiento del Valle de México","16102","DGEAPCTA","Fideicomisos y fondos públicos"]
["Fideicomiso irrevocable de inversión y administración para el pago de pensiones y jubilaciones, F/10045","06801","DGOAEEF","Fideicomisos y fondos públicos"]
["Fideicomiso Irrevocable de Inversión y Garantía Ingenio Mante Pensionados número 46645-0","06831","DGEPPOED","Fideicomisos y fondos públicos"]
["Fideicomiso Museo de Arte Popular Mexicano","11144","DGEAPCTA","Fideicomisos y fondos públicos"]
["Fideicomiso No. F/745293 (antes 2103) Cuauhtémoc-Osiris","09129","DGEPPOED","Fideicomisos y fondos públicos"]
["Fideicomiso para administrar el fondo de pensiones de FOPPAZ","06822","DGEPPOED","Fideicomisos y fondos públicos"]
["Fideicomiso para administrar el fondo de pensiones y gastos médicos de BANPESCA","06823","DGEPPOED","Fideicomisos y fondos públicos"]
["Fideicomiso para administrar el fondo de pensiones y gastos médicos de BNCI","06824","DGEPPOED","Fideicomisos y fondos públicos"]
["Fideicomiso para administrar la contraprestación del artículo 16 de la Ley Aduanera","06103","DGEAPCTA","Fideicomisos y fondos públicos"]
["Fideicomiso para apoyar la construcción del Centro Nacional de las Artes","11145","DGEAPCTA","Fideicomisos y fondos públicos"]
["Fideicomiso para apoyar los programas, proyectos y acciones ambientales de la megalópolis","16001","DGEAPCTA","Fideicomisos y fondos públicos"]
["Fideicomiso para apoyo a la investigación científica y desarrollo tecnológico","18674","DGEPPOED","Fideicomisos y fondos públicos"]
["Fideicomiso para becas y apoyos deportivos \"Chelito Zamora\"","11234","DGEPPOED","Fideicomisos y fondos públicos"]
["Fideicomiso para coadyuvar al desarrollo de las entidades federativas y municipios (FIDEM)","06012","DGEAPCTA","Fideicomisos y fondos públicos"]
["Fideicomiso para cubrir gastos por demandas en el extranjero","05005","DGEAPCTA","Fideicomisos y fondos públicos"]
["Fideicomiso para el ahorro de energía eléctrica","18169","DGOAEEF","Fideicomisos y fondos públicos"]
["Fideicomiso para el apoyo a la investigación científica y desarrollo tecnológico del Instituto de Investigaciones Eléctricas","18471","DGEPPOED","Fideicomisos y fondos públicos"]
["Fideicomiso para el cumplimiento de obligaciones en materia de los derechos humanos","04009","DGEAPCTA","Fideicomisos y fondos públicos"]
["Fideicomiso para el desarrollo de infraestructura que implementa la reforma constitucional en materia penal","03207","DGEPLJ","Fideicomisos y fondos públicos"]
["Fideicomiso para el desarrollo de infraestructura y equipamiento deportivo para los Juegos Panamericanos, Guadalajara 2011","11235","DGEPPOED","Fideicomisos y fondos públicos"]
["Fideicomiso para el desarrollo de la región Sur-Sureste (Fidesur)","15005","DGEAPCTA","Fideicomisos y fondos públicos"]
["Fideicomiso para el desarrollo del deporte No. 4611-1","00646","DGEPPOED","Fideicomisos y fondos públicos"]
["Fideicomiso para el desarrollo regional Noreste (Fidenor-Este)","15006","DGEAPCTA","Fideicomisos y fondos públicos"]
["Fideicomiso para el fomento y la conservación del Patrimonio Cultural, Antropológico, Arqueológico e Histórico de México","11154","DGEAPCTA","Fideicomisos y fondos públicos"]
["Fideicomiso para el Fondo de los Trabajadores del CIAD","11183","DGOAEEF","Fideicomisos y fondos públicos"]
["Fideicomiso para el Fondo Regional (FIFONREGIÓN)","06921","DGEAPCTA","Fideicomisos y fondos públicos"]
["Fideicomiso para el impulso al financiamiento de las empresas","06309","DGOAEEF","Fideicomisos y fondos públicos"]
["Fideicomiso para el mantenimiento de casas habitación de Magistrados y Jueces","03208","DGEPLJ","Fideicomisos y fondos públicos"]
["Fideicomiso para el otorgamiento y pago de primas de antigüedad de su personal y los beneficiarios que estos designen en su caso","11252","DGEPPOED","Fideicomisos y fondos públicos"]
["Fideicomiso para el Pago de Gastos de Servicios de Asistencia y Defensa Legal BANCOMEXT","06315","DGOAEEF","Fideicomisos y fondos públicos"]
["Fideicomiso para el pago de gratificación por antigüedad a los trabajadores de base de la CNBV que se retiren después de 15 años de servicios ininterrumpidos.","06202","DGEAPCTA","Fideicomisos y fondos públicos"]
["Fideicomiso para el pago de las obligaciones laborales de los trabajadores del Centro de Investigaciones en Óptica, A.C.","11181","DGOAEEF","Fideicomisos y fondos públicos"]
["Fideicomiso para el Programa especial de financiamiento a la vivienda para el magisterio","11015","DGEAPCTA","Fideicomisos y fondos públicos"]
["Fideicomiso para la adaptación de los museos Diego Rivera y Frida Kahlo","11016","DGEAPCTA","Fideicomisos y fondos públicos"]
["Fideicomiso para la asistencia legal de los miembros de la Junta de Gobierno, del Comité Consultivo y de Vigilancia y servidores públicos de la Comisión Nacional del Sistema de Ahorro para el Retiro, así como de los interventores administrativos o gerentes y funcionarios auxiliares de las intervenciones.","06122","DGEAPCTA","Fideicomisos y fondos públicos"]
["Fideicomiso para la Cineteca Nacional","04310","DGOAEEF","Fideicomisos y fondos públicos"]
["Fideicomiso para la Comisión México-Estados Unidos F 22927-8","11017","DGEAPCTA","Fideicomisos y fondos públicos"]
["Fideicomiso para la conservación de la Casa del Risco y Pinacoteca Isidro Fabela","11018","DGEAPCTA","Fideicomisos y fondos públicos"]
["Fideicomiso para la constitución de un fondo revolvente de financiamiento para el programa de aislamiento térmico de la vivienda en el Valle de Mexicali, B.C. (FIPATERM Mexicali)","18170","DGOAEEF","Fideicomisos y fondos públicos"]
["Fideicomiso para la construcción, explotación y conservación del tramo carretero Atlacomulco-Maravatio","09130","DGEPPOED","Fideicomisos y fondos públicos"]
["Fideicomiso para la cultura de la comisión México-Estados Unidos para el intercambio educativo y cultural F/22514 (FONCA)","11014","DGEAPCTA","Fideicomisos y fondos públicos"]
["Fideicomiso para la Evaluación de los Fondos de Aportaciones Federales (FIDEFAF)","06922","DGEAPCTA","Fideicomisos y fondos públicos"]
["Fideicomiso para la implementación del Sistema de Justicia Penal en las entidades federativas","06013","DGEAPCTA","Fideicomisos y fondos públicos"]
["Fideicomiso para la infraestructura deportiva (FINDEPO) [201011L6I01528]","11237","DGEPPOED","Fideicomisos y fondos públicos"]
["Fideicomiso para la Infraestructura en los Estados (FIES)","06014","DGEAPCTA","Fideicomisos y fondos públicos"]
["Fideicomiso para la plataforma de infraestructura, mantenimiento y equipamiento de seguridad pública y de aeronaves","04010","DGEAPCTA","Fideicomisos y fondos públicos"]
["Fideicomiso para los trabajadores del Hotel Exconvento Santa Catarina","21164","DGOAEEF","Fideicomisos y fondos públicos"]
["Fideicomiso para pago de primas de antigüedad y jubilación CIQA","11202","DGEPPOED","Fideicomisos y fondos públicos"]
["Fideicomiso para pasivos laborales y primas de antigüedad para el personal del CIATEC","11305","DGOAEEF","Fideicomisos y fondos públicos"]
["Fideicomiso para pensionados del IMP","18675","DGEPPOED","Fideicomisos y fondos públicos"]
["Fideicomiso para promover el desarrollo de proveedores y contratistas nacionales de la industria energética","10001","DGEAPCTA","Fideicomisos y fondos públicos"]
["Fideicomiso para trabajadores de Nacional Hotelera Baja California, S. A.","21165","DGOAEEF","Fideicomisos y fondos públicos"]
["Fideicomiso Patronato del Centro de Diseño México","06306","DGOAEEF","Fideicomisos y fondos públicos"]
["Fideicomiso PEA y préstamos jubilados","06313","DGOAEEF","Fideicomisos y fondos públicos"]
["Fideicomiso pensiones complementarias de Magistrados y Jueces jubilados","03209","DGEPLJ","Fideicomisos y fondos públicos"]
["Fideicomiso plan de pensiones para el personal activo del IMP","18676","DGEPPOED","Fideicomisos y fondos públicos"]
["Fideicomiso plan de pensiones y jubilaciones ESSA","10202","DGOAEEF","Fideicomisos y fondos públicos"]
["Fideicomiso preventivo","04011","DGEAPCTA","Fideicomisos y fondos públicos"]
["Fideicomiso privado irrevocable de administración 'Santo Domingo de Guzmán', Chiapas","11155","DGEAPCTA","Fideicomisos y fondos públicos"]
["Fideicomiso programa de mejoramiento de los medios de informática y control de las autoridades aduaneras","06105","DGEAPCTA","Fideicomisos y fondos públicos"]
["Fideicomiso programa de venta de títulos en directo al público","06786","DGOAEEF","Fideicomisos y fondos públicos"]
["Fideicomiso programa habitacional de FERRONALES en la República Mexicana","09007","DGEAPCTA","Fideicomisos y fondos públicos"]
["Fideicomiso público de administración e inversión para el desarrollo de la infraestructura y equipamiento deportivo en el Estado de Veracruz de Ignacio de la Llave para los Juegos Deportivos Centroamericanos y del Caribe Veracruz 2014","11239","DGEPPOED","Fideicomisos y fondos públicos"]
["Fideicomiso Público de Administración y Pago","16212","DGOAEEF","Fideicomisos y fondos públicos"]
["Fideicomiso público de administración y pago de equipo militar","07002","DGEAPCTA","Fideicomisos y fondos públicos"]
["Fideicomiso SEP-UNAM","64401","DGEALSUPFM","Fideicomisos y fondos públicos"]
["Fideicomiso traslativo de dominio Puerto los Cabos","15101","DGOAEEF","Fideicomisos y fondos públicos"]
["Fideprotesis","12330","DGEPPOED","Fideicomisos y fondos públicos"]
["Financiera Nacional de Desarrollo Agropecuario, Rural, Forestal y Pesquero","06565","DGEPPOED","Ejecutivo"]
["Fiscalía General de la República","00017","DGOAEEF","Órganos Autónomos"]
["FONATUR Constructora, S.A. de C.V.","21068","DGOAEEF","Ejecutivo"]
["FONATUR Infraestructura, S.A. de C.V.","21364","DGOAEEF","Ejecutivo"]
["FONATUR SOLAR, S.A. de C.V.","21161","DGOAEEF","Ejecutivo"]
["FONATUR Tren Maya, S.A. de C.V.","21372","DGOAEEF","Ejecutivo"]
["Fondo Aportaciones para Servicio de Salud (FASSA)","06017","DGEAPCTA","Fideicomisos y fondos públicos"]
["Fondo de ahorro","18677","DGEPPOED","Fideicomisos y fondos públicos"]
["Fondo de Ahorro Capitalizable de los Trabajadores Al Servicio del Estado (FONAC)","06018","DGEAPCTA","Fideicomisos y fondos públicos"]
["Fondo de ahorro capitalizable para los trabajadores operativos del INACIPE","17111","DGEPPOED","Fideicomisos y fondos públicos"]
["Fondo de ahorro para los trabajadores de CORETT","15076","DGEPPOED","Fideicomisos y fondos públicos"]
["Fondo de Aportaciones Múltiples (FAM)","06019","DGEAPCTA","Fideicomisos y fondos públicos"]
["Fondo de Aportaciones para Educación Tecnológica y de Adultos (FAETA)","06020","DGEAPCTA","Fideicomisos y fondos públicos"]
["Fondo de Aportaciones para el Fortalecimiento de las Entidades Federativas (FAFEF)","06021","DGEAPCTA","Fideicomisos y fondos públicos"]
["Fondo de Aportaciones para el Fortalecimiento de los Municipios y de las Demarcaciones Territoriales del Distrito Federal (FORTAMUN)","06022","DGEAPCTA","Fideicomisos y fondos públicos"]
["Fondo de Aportaciones para la Infraestructura Social (FAIS)","06023","DGEAPCTA","Fideicomisos y fondos públicos"]
["Fondo de Aportaciones para la Seguridad Pública de los Estados y del Distrito Federal (FASP)","06024","DGEAPCTA","Fideicomisos y fondos públicos"]
["Fondo de Aportaciones para Nómina Educativa y Gasto Operativo (FONE)","06025","DGEAPCTA","Fideicomisos y fondos públicos"]
["Fondo de apoyo a la administración de justicia","03206","DGEPLJ","Fideicomisos y fondos públicos"]
["Fondo de apoyo al Programa Intersectorial de Educación Saludable","11020","DGEAPCTA","Fideicomisos y fondos públicos"]
["Fondo de apoyo para infraestructura y seguridad","06027","DGEAPCTA","Fideicomisos y fondos públicos"]
["Fondo de apoyo social para ex trabajadores migratorios mexicanos","04012","DGEAPCTA","Fideicomisos y fondos públicos"]
["Fondo de auxilio económico a familiares de las víctimas de homicidio de mujeres en el Municipio de Juárez, Chihuahua","17007","DGOAEEF","Fideicomisos y fondos públicos"]
["Fondo de ayuda, asistencia y reparación integral","00638","DGEPPOED","Fideicomisos y fondos públicos"]
["Fondo de Capital de Trabajo del CENACE",18702,"DGEPPOED","Fideicomisos y fondos públicos"]
["Fondo de Capitalización e Inversión del Sector Rural","06571","DGOAEEF","Fideicomisos y fondos públicos"]
["Fondo de compensación","06029","DGEAPCTA","Fideicomisos y fondos públicos"]
["Fondo de compensación al régimen de pequeños contribuyentes y del régimen de los intermedios","06030","DGEAPCTA","Fideicomisos y fondos públicos"]
["Fondo de compensación de automóviles nuevos","06031","DGEAPCTA","Fideicomisos y fondos públicos"]
["Fondo de cooperación internacional en ciencia y tecnología","11512","DGEPPOED","Fideicomisos y fondos públicos"]
["Fondo de Cultura Económica","11249","DGEPPOED","Ejecutivo"]
["Fondo de desarrollo científico y tecnológico para el fomento de la producción y financiamiento de vivienda y el crecimiento del sector habitacional","11513","DGEPPOED","Fideicomisos y fondos públicos"]
["Fondo de Desastres Naturales ","04013","DGEAPCTA","Fideicomisos y fondos públicos"]
["Fondo de desincorporación de entidades","06032","DGEAPCTA","Fideicomisos y fondos públicos"]
["Fondo de Empresas Expropiadas del Sector Azucarero (*)","08002","DGEAPCTA","Fideicomisos y fondos públicos"]
["Fondo de Estabilización de los Ingresos de las Entidades Federativas (FEIEF)","06033","DGEAPCTA","Fideicomisos y fondos públicos"]
["Fondo de extracción de hidrocarburos","06034","DGEAPCTA","Fideicomisos y fondos públicos"]
["Fondo de fiscalización y recaudación","06035","DGEAPCTA","Fideicomisos y fondos públicos"]
["Fondo de fomento a la educación (FOFOE)","00647","DGEPPOED","Fideicomisos y fondos públicos"]
["Fondo de fomento municipal","06036","DGEAPCTA","Fideicomisos y fondos públicos"]
["Fondo de fomento para la investigación científica y el desarrollo tecnológico de la Universidad Pedagógica Nacional","29011","DGEAPCTA","Fideicomisos y fondos públicos"]
["Fondo de Garantía y Fomento para la Agricultura, Ganadería y Avicultura","06600","DGOAEEF","Fideicomisos y fondos públicos"]
["Fondo de Garantía y Fomento para las Actividades Pesqueras (*)","06601","DGOAEEF","Fideicomisos y fondos públicos"]
["Fondo de infraestructura para países de Mesoamérica y el Caribe","06037","DGEAPCTA","Fideicomisos y fondos públicos"]
["Fondo de infraestructura y equipamiento del Instituto Federal de Telecomunicaciones","09221","DGOAEEF","Fideicomisos y fondos públicos"]
["Fondo de innovación tecnológica Secretaría de Economía – CONACYT","11514","DGEPPOED","Fideicomisos y fondos públicos"]
["Fondo de inversión de capital en Agronegocios (FICA Sureste 2)","06572","DGOAEEF","Fideicomisos y fondos públicos"]
["Fondo de inversión de capital en Agronegocios (FICA)","06573","DGOAEEF","Fideicomisos y fondos públicos"]
["Fondo de inversión de capital en Agronegocios 2 (FICA 2)","06574","DGOAEEF","Fideicomisos y fondos públicos"]
["Fondo de inversión de capital en Agronegocios 3 (FICA 3)","06575","DGOAEEF","Fideicomisos y fondos públicos"]
["Fondo de Inversión de Capital en Agronegocios 4 (FICA 4)","06577","DGOAEEF","Fideicomisos y fondos públicos"]
["Fondo de inversión de capital en Agronegocios Activa (FICA Activa)","06576","DGOAEEF","Fideicomisos y fondos públicos"]
["Fondo de Inversión de Capital en Agronegocios Infraestructura","06578","DGOAEEF","Fideicomisos y fondos públicos"]
["Fondo de investigación científica y desarrollo tecnológico","11204","DGEPPOED","Fideicomisos y fondos públicos"]
["Fondo de investigación científica y desarrollo tecnológico de COMIMSA","11164","DGOAEEF","Fideicomisos y fondos públicos"]
["Fondo de investigación científica y desarrollo tecnológico de El Colegio de la Frontera Sur Fid. 784","11209","DGEPPOED","Fideicomisos y fondos públicos"]
["Fondo de investigación científica y desarrollo tecnológico del Centro de Investigación en Geografía y Geomática, Ing. Jorge L. Tamayo, A.C.","11081","DGOAEEF","Fideicomisos y fondos públicos"]
["Fondo de investigación científica y desarrollo tecnológico del Fondo de Información y Documentación para la Industria INFOTEC","11263","DGOAEEF","Fideicomisos y fondos públicos"]
["Fondo de investigación científica y desarrollo tecnológico del Instituto Mexicano de Tecnología del Agua","16112","DGEPPOED","Fideicomisos y fondos públicos"]
["Fondo de investigación científica y desarrollo tecnológico del Instituto Potosino de Investigación Científica y Tecnológica IPICYT, A.C.","53111","DGOAEEF","Fideicomisos y fondos públicos"]
["Fondo de investigación y desarrollo para la modernización tecnológica","11515","DGEPPOED","Fideicomisos y fondos públicos"]
["Fondo de la amistad México-Japón","11021","DGEAPCTA","Fideicomisos y fondos públicos"]
["Fondo de la Financiera Rural","06566","DGEPPOED","Fideicomisos y fondos públicos"]
["Fondo de Mejoramiento Urbano","15009","DGEAPCTA","Fideicomisos y fondos públicos"]
["Fondo de Operación y Financiamiento Bancario a la Vivienda (*)","06610","DGOAEEF","Fideicomisos y fondos públicos"]
["Fondo de pensiones BANCOMEXT","06308","DGOAEEF","Fideicomisos y fondos públicos"]
["Fondo de pensiones de contribución definida de BANCOMEXT","06312","DGOAEEF","Fideicomisos y fondos públicos"]
["Fondo de pensiones de contribución definida de Nacional Financiera","06788","DGOAEEF","Fideicomisos y fondos públicos"]
["Fondo de pensiones de instituciones liquidadas","06826","DGEPPOED","Fideicomisos y fondos públicos"]
["Fondo de pensiones fideicomiso liquidador de Instituciones y Organizaciones Auxiliares de Crédito","06827","DGEPPOED","Fideicomisos y fondos públicos"]
["Fondo de pensiones Financiera Nacional Azucarera ","06828","DGEPPOED","Fideicomisos y fondos públicos"]
["Fondo de pensiones Servicios de Almacenamiento del Norte S.A.","06829","DGEPPOED","Fideicomisos y fondos públicos"]
["Fondo de pensiones y primas de Antigüedad de NAFIN","06789","DGOAEEF","Fideicomisos y fondos públicos"]
["Fondo de primas de antigüedad, beneficios al retiro y jubilaciones del Instituto de Investigaciones Eléctricas","18472","DGEPPOED","Fideicomisos y fondos públicos"]
["Fondo de protección de sociedades financieras populares y de protección a sus ahorradores (F/10216)","06805","DGOAEEF","Fideicomisos y fondos públicos"]
["Fondo de reconstrucción de Entidades Federativas","06039","DGEAPCTA","Fideicomisos y fondos públicos"]
["Fondo de retiro de los trabajadores de la SEP (FORTE)","11022","DGEAPCTA","Fideicomisos y fondos públicos"]
["Fondo de retiro voluntario y liquidaciones del personal de CIATEQ, A.C.","11405","DGOAEEF","Fideicomisos y fondos públicos"]
["Fondo de Salud para el Bienestar","12103","DGEAPCTA","Fideicomisos y fondos públicos"]
["Fondo de servicio universal eléctrico","18010","DGOAEEF","Fideicomisos y fondos públicos"]
["Fondo de supervisión auxiliar de sociedades cooperativas de ahorro y Préstamo y de Protección a sus Ahorradores. F/10217","06804","DGOAEEF","Fideicomisos y fondos públicos"]
["Fondo editorial de la Plástica Mexicana","06307","DGOAEEF","Fideicomisos y fondos públicos"]
["Fondo Especial de Asistencia Técnica y Garantía para Créditos Agropecuarios (*)","06602","DGOAEEF","Fideicomisos y fondos públicos"]
["Fondo Especial para Financiamientos Agropecuarios (*)","06603","DGOAEEF","Fideicomisos y fondos públicos"]
["Fondo general de participaciones","06040","DGEAPCTA","Fideicomisos y fondos públicos"]
["Fondo institucional de fomento regional para el desarrollo científico, tecnológico, y de innovación","11516","DGEPPOED","Fideicomisos y fondos públicos"]
["Fondo institucional del CONACYT (FOINS)","11517","DGEPPOED","Fideicomisos y fondos públicos"]
["Fondo laboral PEMEX","18671","DGOAEEF","Fideicomisos y fondos públicos"]
["Fondo Metropolitanto","06051","DGEAPCTA","Fideicomisos y fondos públicos"]
["Fondo Mexicano del Petróleo para la Estabilización y el Desarrollo","61200","DGOAEEF","Fideicomisos y fondos públicos"]
["Fondo Mixto Ciudades Coloniales","21005","DGEAPCTA","Fideicomisos y fondos públicos"]
["Fondo mixto CONACYT - Gobierno del Distrito Federal","11518","DGEPPOED","Fideicomisos y fondos públicos"]
["Fondo mixto CONACYT - Gobierno del Estado de Chihuahua.","11519","DGEPPOED","Fideicomisos y fondos públicos"]
["Fondo mixto CONACYT - Gobierno del Estado de México","11520","DGEPPOED","Fideicomisos y fondos públicos"]
["Fondo mixto CONACYT - Gobierno del Estado de Oaxaca","11521","DGEPPOED","Fideicomisos y fondos públicos"]
["Fondo mixto CONACYT - Gobierno del Estado de Veracruz de Ignacio de la Llave","11522","DGEPPOED","Fideicomisos y fondos públicos"]
["Fondo mixto CONACYT - Gobierno Municipal de la Paz, Baja California Sur","11523","DGEPPOED","Fideicomisos y fondos públicos"]
["Fondo mixto CONACYT - Gobierno Municipal de Puebla, Puebla","11524","DGEPPOED","Fideicomisos y fondos públicos"]
["Fondo mixto CONACYT-Gobierno del Estado Aguascalientes","11525","DGEPPOED","Fideicomisos y fondos públicos"]
["Fondo mixto CONACYT-Gobierno del Estado de Campeche","11526","DGEPPOED","Fideicomisos y fondos públicos"]
["Fondo mixto CONACYT-Gobierno del Estado de Chiapas","11527","DGEPPOED","Fideicomisos y fondos públicos"]
["Fondo mixto CONACYT-Gobierno del Estado de Coahuila de Zaragoza","11528","DGEPPOED","Fideicomisos y fondos públicos"]
["Fondo mixto CONACYT-Gobierno del Estado de Colima","11529","DGEPPOED","Fideicomisos y fondos públicos"]
["Fondo mixto CONACYT-Gobierno del Estado de Durango","11530","DGEPPOED","Fideicomisos y fondos públicos"]
["Fondo mixto CONACYT-Gobierno del Estado de Guerrero","11531","DGEPPOED","Fideicomisos y fondos públicos"]
["Fondo mixto CONACYT-Gobierno del Estado de Hidalgo","11532","DGEPPOED","Fideicomisos y fondos públicos"]
["Fondo mixto CONACYT-Gobierno del Estado de Michoacán","11533","DGEPPOED","Fideicomisos y fondos públicos"]
["Fondo mixto CONACYT-Gobierno del Estado de Quintana Roo","11534","DGEPPOED","Fideicomisos y fondos públicos"]
["Fondo mixto CONACYT-Gobierno del Estado de Sinaloa","11535","DGEPPOED","Fideicomisos y fondos públicos"]
["Fondo mixto CONACYT-Gobierno del Estado de Sonora","11536","DGEPPOED","Fideicomisos y fondos públicos"]
["Fondo mixto CONACYT-Gobierno del Estado de Tabasco","11537","DGEPPOED","Fideicomisos y fondos públicos"]
["Fondo mixto CONACYT-Gobierno del Estado de Tamaulipas","11538","DGEPPOED","Fideicomisos y fondos públicos"]
["Fondo mixto CONACYT-Gobierno del Estado de Yucatán","11539","DGEPPOED","Fideicomisos y fondos públicos"]
["Fondo mixto CONACYT-Gobierno Municipal de Ciudad Juárez Chihuahua","11540","DGEPPOED","Fideicomisos y fondos públicos"]
["Fondo Mixto de Acapulco","21006","DGEAPCTA","Fideicomisos y fondos públicos"]
["Fondo mixto de cooperación técnica y científica México-España","05101","DGEAPCTA","Fideicomisos y fondos públicos"]
["Fondo Mixto de Cozumel, Quintana Roo","21007","DGEAPCTA","Fideicomisos y fondos públicos"]
["Fondo mixto de fomento a la investigación científica y tecnológica CONACYT-Gobierno del Estado Baja California","11541","DGEPPOED","Fideicomisos y fondos públicos"]
["Fondo mixto de fomento a la investigación científica y tecnológica CONACYT-Gobierno del Estado de Baja California Sur","11542","DGEPPOED","Fideicomisos y fondos públicos"]
["Fondo mixto de fomento a la investigación científica y tecnológica CONACYT-Gobierno del Estado de Guanajuato","11543","DGEPPOED","Fideicomisos y fondos públicos"]
["Fondo mixto de fomento a la investigación científica y tecnológica CONACYT-Gobierno del Estado de Jalisco","11544","DGEPPOED","Fideicomisos y fondos públicos"]
["Fondo mixto de fomento a la investigación científica y tecnológica CONACYT-Gobierno del Estado de Morelos","11545","DGEPPOED","Fideicomisos y fondos públicos"]
["Fondo mixto de fomento a la investigación científica y tecnológica CONACYT-Gobierno del Estado de Nayarit","11546","DGEPPOED","Fideicomisos y fondos públicos"]
["Fondo mixto de fomento a la investigación científica y tecnológica CONACYT-Gobierno del Estado de Nuevo León","11547","DGEPPOED","Fideicomisos y fondos públicos"]
["Fondo mixto de fomento a la investigación científica y tecnológica CONACYT-Gobierno del Estado de Puebla","11548","DGEPPOED","Fideicomisos y fondos públicos"]
["Fondo mixto de fomento a la investigación científica y tecnológica CONACYT-Gobierno del Estado de Querétaro","11549","DGEPPOED","Fideicomisos y fondos públicos"]
["Fondo mixto de fomento a la investigación científica y tecnológica CONACYT-Gobierno del Estado de San Luis Potosí","11550","DGEPPOED","Fideicomisos y fondos públicos"]
["Fondo mixto de fomento a la investigación científica y tecnológica CONACYT-Gobierno del Estado de Tlaxcala","11551","DGEPPOED","Fideicomisos y fondos públicos"]
["Fondo mixto de fomento a la investigación científica y tecnológica CONACYT-Gobierno del Estado de Zacatecas","11552","DGEPPOED","Fideicomisos y fondos públicos"]
["Fondo Mixto de Mazatlán","21008","DGEAPCTA","Fideicomisos y fondos públicos"]
["Fondo Mixto del Estado de Morelos","21009","DGEAPCTA","Fideicomisos y fondos públicos"]
["Fondo Mixto Mundo Maya","21010","DGEAPCTA","Fideicomisos y fondos públicos"]
["Fondo nacional de cooperación internacional para el desarrollo","05102","DGEAPCTA","Fideicomisos y fondos públicos"]
["Fondo Nacional de Fomento al Turismo","21160","DGOAEEF","Fideicomisos y fondos públicos"]
["Fondo Nacional de Seguridad para Cruces Viales Ferroviarios","09014","DGEAPCTA","Fideicomisos y fondos públicos"]
["Fondo Nacional para el Fomento de las Artesanías","20312","DGOAEEF","Fideicomisos y fondos públicos"]
["Fondo Nacional para el Fortalecimiento y Modernización de la Impartición de Justicia (FONDO JURICA)","03302","DGEPLJ","Fideicomisos y fondos públicos"]
["Fondo para ayudas extraordinarias con motivo del incendio de la Guardería ABC","00648","DGEPPOED","Fideicomisos y fondos públicos"]
["Fondo para el cambio climático","16003","DGEAPCTA","Fideicomisos y fondos públicos"]
["Fondo para el Cumplimiento del Programa de Infraestructura Inmobiliaria y para la Atención Ciudadana y el Mejoramiento de Módulos del Instituto Nacional Electoral","22200","DGEPPOED","Fideicomisos y fondos públicos"]
["Fondo para el deporte de alto rendimiento","11240","DGEPPOED","Fideicomisos y fondos públicos"]
["Fondo para el Desarrollo de Recursos Humanos (*)","11275","DGOAEEF","Fideicomisos y fondos públicos"]
["Fondo para el Desarrollo de Zonas de Producción Minera","10005","DGEAPCTA","Fideicomisos y fondos públicos"]
["Fondo para el fomento y apoyo a la investigación científica y tecnológica en bioseguridad y biotecnología","11553","DGEPPOED","Fideicomisos y fondos públicos"]
["Fondo para el ordenamiento de la propiedad rural","15008","DGEAPCTA","Fideicomisos y fondos públicos"]
["Fondo para la administración de los recursos provenientes de sentencias que deriven de las Acciones Colectivas Difusas, a que se refiere el artículo 624 del Código Federal de Procedimientos Civiles","03210","DGEPLJ","Fideicomisos y fondos públicos"]
["Fondo para la asistencia y defensa legal de los miembros de la Junta de Gobierno de la Comisión Nacional Bancaria y de Valores que no sean servidores públicos de ésta, así como de los Interventores y personal auxiliar al cual los propios Interventores les otorguen poderes porque sea necesario para el desempeño de sus funciones.","06203","DGEAPCTA","Fideicomisos y fondos públicos"]
["Fondo para la biodiversidad","16004","DGEAPCTA","Fideicomisos y fondos públicos"]
["Fondo para la participación de riesgos 11480","06790","DGOAEEF","Fideicomisos y fondos públicos"]
["Fondo para la participación de riesgos en fianzas","06791","DGOAEEF","Fideicomisos y fondos públicos"]
["Fondo para la prevención de desastres naturales","04014","DGEAPCTA","Fideicomisos y fondos públicos"]
["Fondo para la protección de personas defensoras de derechos humanos y periodistas","04015","DGEAPCTA","Fideicomisos y fondos públicos"]
["Fondo para la transición energética y el aprovechamiento sustentable de la energía","18011","DGOAEEF","Fideicomisos y fondos públicos"]
["Fondo para los trabajadores por prima de antigüedad de EDUCAL","11286","DGOAEEF","Fideicomisos y fondos públicos"]
["Fondo para solventar las contingencias derivadas de juicios laborales de la Comisión Federal de Competencia Económica","10112","DGOAEEF","Fideicomisos y fondos públicos"]
["Fondo sectorial CONACYT – INEGI","11554","DGEPPOED","Fideicomisos y fondos públicos"]
["Fondo sectorial CONACYT - Secretaría de Energía - Hidrocarburos","11555","DGEPPOED","Fideicomisos y fondos públicos"]
["Fondo sectorial CONACYT - Secretaría de Energía - Sustentabilidad energética","11556","DGEPPOED","Fideicomisos y fondos públicos"]
["Fondo sectorial CONACYT - SEGOB - CNS para la seguridad pública","11557","DGEPPOED","Fideicomisos y fondos públicos"]
["Fondo sectorial de innovación Secretaría de Economía - CONACYT","11558","DGEPPOED","Fideicomisos y fondos públicos"]
["Fondo sectorial de investigación ambiental","11559","DGEPPOED","Fideicomisos y fondos públicos"]
["Fondo sectorial de investigación en materias agrícola, pecuaria, acuacultura, agrobiotecnología y recursos fitogenéticos","11560","DGEPPOED","Fideicomisos y fondos públicos"]
["Fondo sectorial de investigación en salud y seguridad social","11561","DGEPPOED","Fideicomisos y fondos públicos"]
["Fondo sectorial de investigación INIFED - CONACYT","11562","DGEPPOED","Fideicomisos y fondos públicos"]
["Fondo sectorial de investigación para el desarrollo aeroportuario y la navegación aérea","11563","DGEPPOED","Fideicomisos y fondos públicos"]
["Fondo sectorial de investigación para el desarrollo social","11564","DGEPPOED","Fideicomisos y fondos públicos"]
["Fondo sectorial de investigación para la educación","11565","DGEPPOED","Fideicomisos y fondos públicos"]
["Fondo Sectorial de Investigación para la Evaluación de la Educación CONACYT-INEE","11575","DGEPPOED","Fideicomisos y fondos públicos"]
["Fondo sectorial de investigación Secretaría de Relaciones Exteriores","11566","DGEPPOED","Fideicomisos y fondos públicos"]
["Fondo Sectorial de Investigación sobre Pobreza, Monitoreo y Evaluación CONACYT-CONEVAL","11576","DGEPPOED","Fideicomisos y fondos públicos"]
["Fondo sectorial de investigación y desarrollo en ciencias navales","11567","DGEPPOED","Fideicomisos y fondos públicos"]
["Fondo sectorial de investigación y desarrollo INMUJERES-CONACYT","11568","DGEPPOED","Fideicomisos y fondos públicos"]
["Fondo sectorial de investigación y desarrollo sobre el agua","11569","DGEPPOED","Fideicomisos y fondos públicos"]
["Fondo sectorial de investigación, desarrollo tecnológico e innovación del Ejército y Fuerza Aérea Mexicanos, CONACYT – SEDENA","11570","DGEPPOED","Fideicomisos y fondos públicos"]
["Fondo sectorial de investigación, desarrollo tecnológico e innovación en actividades espaciales, CONACYT – AEM","11571","DGEPPOED","Fideicomisos y fondos públicos"]
["Fondo sectorial para investigación y desarrollo tecnológico en energía","11572","DGEPPOED","Fideicomisos y fondos públicos"]
["Fondo sectorial para la investigación, el desarrollo y la innovación tecnológica en turismo","11573","DGEPPOED","Fideicomisos y fondos públicos"]
["Fondo sectorial para la investigación, el desarrollo y la innovación tecnológica forestal","11574","DGEPPOED","Fideicomisos y fondos públicos"]
["Fondos de investigación científica y desarrollo tecnológico 1759-6","11281","DGEPPOED","Fideicomisos y fondos públicos"]
["Fuerza por México",22410,"DGEPPOED","Partidos Políticos"]
["Grupo Aeroportuario de la Ciudad de México, S.A. de C.V.","09450","DGOAEEF","Ejecutivo"]
["Guardia Nacional","28001","DGEAPCTA","Ejecutivo"]
["Hospital General \"Dr. Manuel Gea González\"","12195","DGEPPOED","Ejecutivo"]
["Hospital General de México \"Dr. Eduardo Liceaga\"","12197","DGEPPOED","Ejecutivo"]
["Hospital Infantil de México Federico Gómez","12200","DGEPPOED","Ejecutivo"]
["Hospital Juárez de México","12190","DGEPPOED","Ejecutivo"]
["Hospital Regional de Alta Especialidad de Ciudad Victoria \"Bicentenario 2010\"","12213","DGEPPOED","Ejecutivo"]
["Hospital Regional de Alta Especialidad de Ixtapaluca","12214","DGEPPOED","Ejecutivo"]
["Hospital Regional de Alta Especialidad de la Península de Yucatán","12212","DGEPPOED","Ejecutivo"]
["Hospital Regional de Alta Especialidad de Oaxaca","12211","DGEPPOED","Ejecutivo"]
["Hospital Regional de Alta Especialidad del Bajío","12210","DGEPPOED","Ejecutivo"]
["Impresora y Encuadernadora Progreso, S.A. de C.V.","11190","DGOAEEF","Ejecutivo"]
["Impuesto Especial sobre Producción y Servicios","06041","DGEAPCTA","Fideicomisos y fondos públicos"]
["Impuesto sobre la renta participable","06042","DGEAPCTA","Fideicomisos y fondos públicos"]
["INFOTEC Centro de Investigación e Innovación en Tecnologías de la Información y Comunicación","11262","DGOAEEF","Fideicomisos y fondos públicos"]
["Instituto de Administración y Avalúos de Bienes Nacionales (*)","27001","DGEAPCTA","Ejecutivo"]
["Instituto de Competitividad Turística (*)","21002","DGEAPCTA","Ejecutivo"]
["Instituto de Ecología, A.C.","11279","DGOAEEF","Ejecutivo"]
["Instituto de Investigaciones \"Dr. José María Luis Mora\"","11280","DGEPPOED","Ejecutivo"]
["Instituto de los Mexicanos en el Exterior (*)","05001","DGEAPCTA","Ejecutivo"]
["Instituto de Salud para el Bienestar",12380,"DGEPPOED","Ejecutivo"]
["Instituto de Seguridad Social para las Fuerzas Armadas Mexicanas","07150","DGEPPOED","Ejecutivo"]
["Instituto de Seguridad y Servicios Sociales de los Trabajadores del Estado","00637","DGEPPOED","Ejecutivo"]
["Instituto del Fondo Nacional de la Vivienda para los Trabajadores","00635","DGOAEEF","Órganos Autónomos"]
["Instituto del Fondo Nacional para el Consumo de los Trabajadores","14120","DGEPPOED","Ejecutivo"]
["Instituto Federal de Telecomunicaciones","09121","DGOAEEF","Órganos Autónomos"]
["Instituto Matías Romero (*)","05002","DGEAPCTA","Ejecutivo"]
["Instituto Mexicano de Cinematografía","11312","DGEPPOED","Ejecutivo"]
["Instituto Mexicano de la Juventud","11318","DGEPPOED","Ejecutivo"]
["Instituto Mexicano de la Propiedad Industrial","10265","DGEPPOED","Ejecutivo"]
["Instituto Mexicano de la Radio","11321","DGEPPOED","Ejecutivo"]
["Instituto Mexicano de Tecnología del Agua","16111","DGEPPOED","Ejecutivo"]
["Instituto Mexicano del Petróleo","18474","DGEPPOED","Ejecutivo"]
["Instituto Mexicano del Seguro Social","00641","DGEPPOED","Ejecutivo"]
["Instituto Mexicano del Transporte (*)","09001","DGEAPCTA","Ejecutivo"]
["Instituto Nacional de Antropología e Historia","11151","DGEAPCTA","Ejecutivo"]
["Instituto Nacional de Astrofísica, Óptica y Electrónica","11290","DGEPPOED","Ejecutivo"]
["Instituto Nacional de Bellas Artes y Literatura","11161","DGEAPCTA","Ejecutivo"]
["Instituto Nacional de Cancerología","12215","DGEPPOED","Ejecutivo"]
["Instituto Nacional de Cardiología Ignacio Chávez","12220","DGEPPOED","Ejecutivo"]
["Instituto Nacional de Ciencias Médicas y Nutrición Salvador Zubirán","12226","DGEPPOED","Ejecutivo"]
["Instituto Nacional de Ciencias Penales","17110","DGEPPOED","Ejecutivo"]
["Instituto Nacional de Desarrollo Social","20999","DGEAPCTA","Ejecutivo"]
["Instituto Nacional de Ecología y Cambio Climático","16121","DGEPPOED","Ejecutivo"]
["Instituto Nacional de Electricidad y Energías Limpias","18470","DGEPPOED","Ejecutivo"]
["Instituto Nacional de Enfermedades Respiratorias Ismael Cosío Villegas","12223","DGEPPOED","Ejecutivo"]
["Instituto Nacional de Estadística y Geografía","40100","DGOAEEF","Órganos Autónomos"]
["Instituto Nacional de Estudios Históricos de las Revoluciones de México","11199","DGEAPCTA","Ejecutivo"]
["Instituto Nacional de Geriatría (*)","12012","DGEAPCTA","Ejecutivo"]
["Instituto Nacional de Investigaciones Forestales, Agrícolas y Pecuarias","08170","DGEPPOED","Ejecutivo"]
["Instituto Nacional de Investigaciones Nucleares","18476","DGEPPOED","Ejecutivo"]
["Instituto Nacional de la Economía Social","20100","DGEAPCTA","Ejecutivo"]
["Instituto Nacional de la Infraestructura Física Educativa",11140,"DGEPPOED","Ejecutivo"]
["Instituto Nacional de las Mujeres","06104","DGEPPOED","Ejecutivo"]
["Instituto Nacional de las Personas Adultas Mayores","20410","DGEPPOED","Ejecutivo"]
["Instituto Nacional de Lenguas Indígenas","11311","DGEPPOED","Ejecutivo"]
["Instituto Nacional de los Pueblos Indígenas","00625","DGEPPOED","Ejecutivo"]
["Instituto Nacional de Medicina Genómica","12370","DGEPPOED","Ejecutivo"]
["Instituto Nacional de Migración","04111","DGEAPCTA","Ejecutivo"]
["Instituto Nacional de Neurología y Neurocirugía Manuel Velasco Suárez","12230","DGEPPOED","Ejecutivo"]
["Instituto Nacional de Pediatría","12245","DGEPPOED","Ejecutivo"]
["Instituto Nacional de Perinatología Isidro Espinosa de los Reyes","12250","DGEPPOED","Ejecutivo"]
["Instituto Nacional de Pesca","08198","DGEPPOED","Ejecutivo"]
["Instituto Nacional de Psiquiatría Ramón de la Fuente Muñiz","12295","DGEPPOED","Ejecutivo"]
["Instituto Nacional de Rehabilitación Luis Guillermo Ibarra Ibarra","12329","DGEPPOED","Ejecutivo"]
["Instituto Nacional de Salud Pública","12270","DGEPPOED","Ejecutivo"]
["Instituto Nacional de Transparencia, Acceso a la Información y Protección de Datos Personales","06738","DGOAEEF","Órganos Autónomos"]
["Instituto Nacional del Derecho de Autor (*)","11142","DGEAPCTA","Ejecutivo"]
["Instituto Nacional del Suelo Sustentable","15075","DGEPPOED","Ejecutivo"]
["Instituto Nacional Electoral","22100","DGEPPOED","Órganos Autónomos"]
["Instituto Nacional para el Desarrollo de Capacidades del Sector Rural, A.C.","08162","DGOAEEF","Ejecutivo"]
["Instituto Nacional para el Federalismo y el Desarrollo Municipal (*)","04005","DGEAPCTA","Ejecutivo"]
["Instituto Nacional para la Educación de los Adultos","11310","DGEPPOED","Ejecutivo"]
["Instituto para Devolver al Pueblo lo Robado","06812","DGEPPOED","Ejecutivo"]
["Instituto para el Desarrollo Técnico de las Haciendas Públicas","06110","DGEPPOED","Ejecutivo"]
["Instituto para la Protección al Ahorro Bancario","06747","DGEPPOED","Ejecutivo"]
["Instituto Politécnico Nacional","11171","DGEAPCTA","Ejecutivo"]
["Instituto Potosino de Investigación Científica y Tecnológica, A.C.","53110","DGOAEEF","Ejecutivo"]
["Junta Federal de Conciliación y Arbitraje","14100","DGEALSUPFM","Ejecutivo"]
["La transferencia  del Fondo Mexicano del Petróleo para la Estabilización y el Desarrollo","06043","DGEAPCTA","Fideicomisos y fondos públicos"]
["Laboratorios de Biológicos y Reactivos de México, S.A. de C.V.","12277","DGOAEEF","Ejecutivo"]
["Liconsa, S.A. de C.V.","20143","DGOAEEF","Ejecutivo"]
["Lotería Nacional","06810","DGEPPOED","Ejecutivo"]
["Lotería Nacional para la Asistencia Pública","06750","DGEPPOED","Ejecutivo"]
["M. 133.- Fraccionamiento Agua Hedionda","06004","DGOAEEF","Fideicomisos y fondos públicos"]
["Mand. 1312.- Juicio promovido por ICA vs INECEL de la República de Ecuador","06044","DGEAPCTA","Fideicomisos y fondos públicos"]
["Mandato Antiguo Colegio de San Idelfonso","11146","DGEAPCTA","Fideicomisos y fondos públicos"]
["Mandato de administración para recompensas de la Procuraduría General de la Republica","17008","DGOAEEF","Fideicomisos y fondos públicos"]
["Mandato del fondo nacional para la cultura y las artes","11147","DGEAPCTA","Fideicomisos y fondos públicos"]
["Mandato del Túnel Emisor Oriente (TEO)","16103","DGEAPCTA","Fideicomisos y fondos públicos"]
["Mandato extinta Comisión Monetaria","06045","DGEAPCTA","Fideicomisos y fondos públicos"]
["Mandato fiduciario de inversión y admón. apoyo financiero a favor del Fideicomiso Sindicatura de Promotora del Valle de Morelia (PROVAM)","06046","DGEAPCTA","Fideicomisos y fondos públicos"]
["Mandato para el establecimiento del Fondo de Contingencia de las RME´S","05006","DGEAPCTA","Fideicomisos y fondos públicos"]
["Mandato para el Fondo de apoyo al proyecto en el Distrito Federal","11023","DGEAPCTA","Fideicomisos y fondos públicos"]
["Mandato para la Estrategia de Fortalecimiento para la Atención a Mexicanos en Estados Unidos","05103","DGEAPCTA","Fideicomisos y fondos públicos"]
["Mandato para la realización de actos previos a la enajenación de las aeronaves al servicio de la Comisión Nacional del Agua","16104","DGEAPCTA","Fideicomisos y fondos públicos"]
["Mandato SHCP Mex. Tex Development Corp.","06048","DGEAPCTA","Fideicomisos y fondos públicos"]
["Mandatos fusión y liquidación (FONEP, FIDEIN, PAI)","06792","DGOAEEF","Fideicomisos y fondos públicos"]
["Mario Renato Menéndez Rodríguez 7997","06793","DGOAEEF","Fideicomisos y fondos públicos"]
["México Emprende","10212","DGEAPCTA","Fideicomisos y fondos públicos"]
["Morena","22300","DGEPPOED","Partidos Políticos"]
["Movimiento Ciudadano","22310","DGEPPOED","Partidos Políticos"]
["Museo Dolores Olmedo Patiño","06049","DGEAPCTA","Fideicomisos y fondos públicos"]
["Nacional Financiera, S.N.C.","06780","DGOAEEF","Ejecutivo"]
["Notimex, Agencia de Noticias del Estado Mexicano","06630","DGEPPOED","Ejecutivo"]
["Oficina de la Presidencia de la República","02100","DGEAPCTA","Ejecutivo"]
["Orden Mexicana de Profesionales Marítimos y Portuarios, Similares y Conexos","60277","DGEALSUPFM","Sindicatos"]
["Organismo Coordinador de las Universidades para el Bienestar Benito Juárez García",11600,"DGEPPOED","Ejecutivo"]
["Organismo Promotor de Inversiones en Telecomunicaciones","09011","DGEPPOED","Ejecutivo"]
["Para apoyar la construcción y equipamiento del nuevo recinto legislativo de la Cámara de Senadores","01301","DGOAEEF","Fideicomisos y fondos públicos"]
["Partido Acción Nacional","22330","DGEPPOED","Partidos Políticos"]
["Partido de la Revolución Democrática","22340","DGEPPOED","Partidos Políticos"]
["Partido del Trabajo","22350","DGEPPOED","Partidos Políticos"]
["Partido Encuentro Solidario",22390,"DGEPPOED","Partidos Políticos"]
["Partido Revolucionario Institucional","22370","DGEPPOED","Partidos Políticos"]
["Partido Verde Ecologista de México","22380","DGEPPOED","Partidos Políticos"]
["Patronato de Obras e Instalaciones del Instituto Politécnico Nacional","11390","DGEPPOED","Ejecutivo"]
["Pemex Exploración y Producción","18575","DGOAEEF","Ejecutivo"]
["Pemex Logística","18570","DGOAEEF","Ejecutivo"]
["Pemex Transformación Industrial","18679","DGOAEEF","Ejecutivo"]
["Pensiones complementarias para mandos medios y personal operativo de la Suprema Corte de Justicia de la Nación","03303","DGEPLJ","Fideicomisos y fondos públicos"]
["Pensiones complementarias para servidores públicos de mando superior de la Suprema Corte de Justicia de la Nación","03304","DGEPLJ","Fideicomisos y fondos públicos"]
["Petróleos Mexicanos","18572","DGOAEEF","Ejecutivo"]
["Plan de pensiones de contribución definida para el personal de mando del FIFOMI","10103","DGOAEEF","Fideicomisos y fondos públicos"]
["Plan de pensiones personal operativo","10104","DGOAEEF","Fideicomisos y fondos públicos"]
["Plan de prestaciones médicas","03305","DGEPLJ","Fideicomisos y fondos públicos"]
["Prevención y Readaptación Social","36700","DGEAPCTA","Ejecutivo"]
["Prima de antigüedad","10105","DGOAEEF","Fideicomisos y fondos públicos"]
["Procuraduría Agraria","15105","DGEPPOED","Ejecutivo"]
["Procuraduría de la Defensa del Contribuyente","00632","DGEPPOED","Ejecutivo"]
["Procuraduría Federal de la Defensa del Trabajo","14111","DGEALSUPFM","Ejecutivo"]
["Procuraduría Federal de Protección al Ambiente","16131","DGEAPCTA","Ejecutivo"]
["Procuraduría Federal del Consumidor","10315","DGEPPOED","Ejecutivo"]
["Productora Nacional de Biológicos Veterinarios","08460","DGEPPOED","Ejecutivo"]
["Programa Nacional de Superación de Personal Académico (SUPERA)","11024","DGEAPCTA","Fideicomisos y fondos públicos"]
["ProMéxico","10110","DGEPPOED","Ejecutivo"]
["Radio Educación (*)","11143","DGEAPCTA","Ejecutivo"]
["Redes Sociales Progresistas",22400,"DGEPPOED","Partidos Políticos"]
["Registro Agrario Nacional","15111","DGEAPCTA","Ejecutivo"]
["Remanentes presupuestarios del año 1998 y anteriores","03306","DGEPLJ","Fideicomisos y fondos públicos"]
["Sección Mexicana de la Comisión Internacional de Límites y Aguas entre México y Estados Unidos (*)","05003","DGEAPCTA","Ejecutivo"]
["Secciones Mexicanas de las Comisiones Internacionales de Límites y Aguas entre México y Guatemala, y entre México y Belice (*)","05004","DGEAPCTA","Ejecutivo"]
["Secretaría de Agricultura y Desarrollo Rural ","00008","DGEAPCTA","Ejecutivo"]
["Secretaría de Bienestar","00020","DGEAPCTA","Ejecutivo"]
["Secretaría de Comunicaciones y Transportes","00009","DGEAPCTA","Ejecutivo"]
["Secretaría de Cultura","11141","DGEAPCTA","Ejecutivo"]
["Secretaría de Desarrollo Agrario, Territorial y Urbano","00015","DGEAPCTA","Ejecutivo"]
["Secretaría de Economía","00010","DGEAPCTA","Ejecutivo"]
["Secretaría de Educación Pública","00011","DGEAPCTA","Ejecutivo"]
["Secretaría de Energía","00018","DGOAEEF","Ejecutivo"]
["Secretaría de Gobernación","00004","DGEAPCTA","Ejecutivo"]
["Secretaría de Hacienda y Crédito Público","00006","DGEAPCTA","Ejecutivo"]
["Secretaría de la Defensa Nacional","00007","DGEAPCTA","Ejecutivo"]
["Secretaría de la Función Pública","00027","DGEAPCTA","Ejecutivo"]
["Secretaría de Marina","00013","DGEAPCTA","Ejecutivo"]
["Secretaría de Medio Ambiente y Recursos Naturales","00016","DGEAPCTA","Ejecutivo"]
["Secretaría de Relaciones Exteriores","00005","DGEAPCTA","Ejecutivo"]
["Secretaría de Salud","00012","DGEAPCTA","Ejecutivo"]
["Secretaría de Seguridad y Protección Ciudadana","00028","DGEAPCTA","Ejecutivo"]
["Secretaría de Turismo","00021","DGEAPCTA","Ejecutivo"]
["Secretaría del Trabajo y Previsión Social","00014","DGEALSUPFM","Ejecutivo"]
["Secretaría Ejecutiva del Sistema Nacional Anticorrupción","47001","DGEPPOED","Ejecutivo"]
["Secretaría Ejecutiva del Sistema Nacional para la Protección Integral de Niñas, Niños y Adolescentes (*)","04006","DGEAPCTA","Ejecutivo"]
["Secretaría General del Consejo Nacional de Población","04160","DGEAPCTA","Ejecutivo"]
["Secretariado Ejecutivo del Sistema Nacional de Seguridad Pública","22103","DGEAPCTA","Ejecutivo"]
["Seguridad Alimentaria Mexicana","08003","DGEPPOED","Ejecutivo"]
["Seguros de Crédito a la Vivienda SHF, S.A. de C.V. (*)","06920","DGOAEEF","Ejecutivo"]
["Senado de la República","01300","DGEPLJ","Legislativo"]
["Servicio de Administración Tributaria","06101","DGEAPCTA","Ejecutivo"]
["Servicio de Información Agroalimentaria y Pesquera","08199","DGEAPCTA","Ejecutivo"]
["Servicio de Protección Federal","36001","DGEAPCTA","Ejecutivo"]
["Servicio Geológico Mexicano","10100","DGEPPOED","Ejecutivo"]
["Servicio Nacional de Inspección y Certificación de Semillas","08610","DGEAPCTA","Ejecutivo"]
["Servicio Nacional de Sanidad, Inocuidad y Calidad Agroalimentaria","08210","DGEAPCTA","Ejecutivo"]
["Servicio Postal Mexicano","09338","DGEPPOED","Ejecutivo"]
["Servicios a la Navegación en el Espacio Aéreo Mexicano","09111","DGEAPCTA","Ejecutivo"]
["Servicios Aeroportuarios de la Ciudad de México, S.A. de C.V.","09448","DGOAEEF","Ejecutivo"]
["Servicios de Atención Psiquiátrica (*)","12011","DGEAPCTA","Ejecutivo"]
["Sindicato Auténtico de los Trabajadores del Centro de Investigación en Alimentación y Desarrollo (CIAD)","60295","DGEALSUPFM","Sindicatos"]
["Sindicato de Industrial de Trabajadores Salineros, Marineros, Maquinistas, Cargadores, Similares y Conexos de la Baja California","60266","DGEALSUPFM","Sindicatos"]
["Sindicato de Investigaciones del INIFAP al servicio del Agro Mexicano","60316","DGEALSUPFM","Sindicatos"]
["Sindicato de Investigadores y Profesores de El Colegio de la Frontera Norte","60104","DGEALSUPFM","Sindicatos"]
["Sindicato de los Trabajadores de la Construcción, Mantenimiento y Conservación de Infraestructura Turística, Campos de Golf y Plantas de Tratamiento de Aguas Residuales, Similares y Conexos del Estado de Baja California Sur","60298","DGEALSUPFM","Sindicatos"]
["Sindicato de Trabajadores Académicos de la Universidad Autónoma de Chapingo","60105","DGEALSUPFM","Sindicatos"]
["Sindicato de Trabajadores de Baja Mantenimiento y Operación del Puerto de Loreto","60271","DGEALSUPFM","Sindicatos"]
["Sindicato de Trabajadores de la Cámara de Diputados del H. Congreso de la Unión","60109","DGEALSUPFM","Sindicatos"]
["Sindicato de Trabajadores de la Cámara de Diputados del Poder Legislativo Federal","60110","DGEALSUPFM","Sindicatos"]
["Sindicato de Trabajadores de la Cámara de Senadores","60111","DGEALSUPFM","Sindicatos"]
["Sindicato de Trabajadores de la Construcción, Materialistas, Similares y Conexos del Estado de Guerrero","60273","DGEALSUPFM","Sindicatos"]
["Sindicato de Trabajadores de la Industria de la Radiodifusión, Televisión, Telecomunicaciones Similares y Conexos de la República Mexicana","60275","DGEALSUPFM","Sindicatos"]
["Sindicato de Trabajadores de la Universidad Autónoma de Chapingo","60115","DGEALSUPFM","Sindicatos"]
["Sindicato de Trabajadores de la Universidad Nacional Autónoma de México","60116","DGEALSUPFM","Sindicatos"]
["Sindicato de Trabajadores de Talleres Gráficos de México","60117","DGEALSUPFM","Sindicatos"]
["Sindicato de Trabajadores del Centro de Investigación y Docencia Económicas, A.C.","60118","DGEALSUPFM","Sindicatos"]
["Sindicato de Trabajadores del Centro de Investigaciones en Óptica, A. C.","60318","DGEALSUPFM","Sindicatos"]
["Sindicato de Trabajadores del Consejo Nacional de Ciencia y Tecnología","60121","DGEALSUPFM","Sindicatos"]
["Sindicato de Trabajadores del Instituto Mexicano de la Juventud","60122","DGEALSUPFM","Sindicatos"]
["Sindicato de Trabajadores del Instituto Mexicano de Tecnología del Agua","60123","DGEALSUPFM","Sindicatos"]
["Sindicato de Trabajadores del Instituto Nacional de Ciencias Penales","60124","DGEALSUPFM","Sindicatos"]
["Sindicato de Trabajadores del Instituto Nacional para el Desarrollo de Capacidades del Sector Rural","60125","DGEALSUPFM","Sindicatos"]
["Sindicato de Trabajadores del Patronato de Obras e Instalaciones del Instituto Politécnico Nacional","60127","DGEALSUPFM","Sindicatos"]
["Sindicato de Trabajadores del Poder Judicial de la Federación","60128","DGEALSUPFM","Sindicatos"]
["Sindicato de Trabajadores del Servicio de Administración Tributaria y de Hacienda","60129","DGEALSUPFM","Sindicatos"]
["Sindicato de Trabajadores del Tribunal Federal de Conciliación y Arbitraje","60130","DGEALSUPFM","Sindicatos"]
["Sindicato de Trabajadores Democráticos de la Secretaría de Comunicaciones y Transportes","60131","DGEALSUPFM","Sindicatos"]
["Sindicato de Trabajadores en Establecimientos Comerciales, Condo-Hoteles, Restaurantes y Similares de la Costa Grande de Guerrero C.T.M.","60270","DGEALSUPFM","Sindicatos"]
["Sindicato de Trabajadores Ferrocarrileros de la República Mexicana","60132","DGEALSUPFM","Sindicatos"]
["Sindicato de Trabajadores Petroleros de la República Mexicana","60133","DGEALSUPFM","Sindicatos"]
["Sindicato de Unidad Nacional de los Trabajadores de Acuacultura y Pesca de la Secretaría de Agricultura y Desarrollo Rural","60134","DGEALSUPFM","Sindicatos"]
["Sindicato de Vanguardia Nacional de los Trabajadores de la Secretaría de Comunicaciones y Transportes","60135","DGEALSUPFM","Sindicatos"]
["Sindicato Democrático Autónomo de Trabajadores de la Secretaría de Desarrollo Social","60315","DGEALSUPFM","Sindicatos"]
["Sindicato Democrático de Trabajadores de Pesca y Acuacultura de la Secretaría de Agricultura, Ganadería, Desarrollo Rural, Pesca y Alimentación","60137","DGEALSUPFM","Sindicatos"]
["Sindicato Gremial de Profesores - Investigadores de El Colegio de México","60138","DGEALSUPFM","Sindicatos"]
["Sindicato Independiente de Académicos del Colegio de Postgraduados","60140","DGEALSUPFM","Sindicatos"]
["Sindicato Independiente de Integración Nacional de Trabajadores de la Secretaría de Agricultura, Ganadería, Desarrollo Rural, Pesca y Alimentación","60301","DGEALSUPFM","Sindicatos"]
["Sindicato Independiente de Investigadores del Instituto Nacional de Investigaciones Forestales, Agrícolas y Pecuarias","60142","DGEALSUPFM","Sindicatos"]
["Sindicato Independiente de Trabajadores Académicos de Oaxaca, SITAC-OAX ","60263","DGEALSUPFM","Sindicatos"]
["Sindicato Independiente de Trabajadores de El Colegio de Postgraduados","60150","DGEALSUPFM","Sindicatos"]
["Sindicato Independiente de Trabajadores de la Cámara de Senadores","60144","DGEALSUPFM","Sindicatos"]
["Sindicato Independiente de Trabajadores de la Secretaría de Comunicaciones y Transportes","60147","DGEALSUPFM","Sindicatos"]
["Sindicato Independiente de Trabajadores de la Secretaría de Cultura.","60309","DGEALSUPFM","Sindicatos"]
["Sindicato Independiente de Trabajadores de la Universidad Autónoma Metropolitana","60288","DGEALSUPFM","Sindicatos"]
["Sindicato Independiente Nacional de Trabajadores del Colegio de Bachilleres","60153","DGEALSUPFM","Sindicatos"]
["Sindicato Mexicano de Trabajadores en Servicios Especializados, Emergentes, Asistenciales y Administrativos","60300","DGEALSUPFM","Sindicatos"]
["Sindicato Nacional de Arquitectos Conservadores del Patrimonio Cultural de la Secretaría de Cultura- Instituto Nacional de Antropología e Historia.","60311","DGEALSUPFM","Sindicatos"]
["Sindicato Nacional de Controladores de Tránsito Aéreo","60154","DGEALSUPFM","Sindicatos"]
["Sindicato Nacional de Cultura","60304","DGEALSUPFM","Sindicatos"]
["Sindicato Nacional de Grupos Artísticos del Instituto Nacional de Bellas Artes y Literatura","60305","DGEALSUPFM","Sindicatos"]
["Sindicato Nacional de los Trabajadores de la Secretaría de Cultura","60254","DGEALSUPFM","Sindicatos"]
["Sindicato Nacional de los Trabajadores del Consejo Nacional de Fomento Educativo","60159","DGEALSUPFM","Sindicatos"]
["Sindicato Nacional de Profesores de Investigación Científica y Docencia del INAH.","60310","DGEALSUPFM","Sindicatos"]
["Sindicato Nacional de Trabajadores de DICONSA","60162","DGEALSUPFM","Sindicatos"]
["Sindicato Nacional de Trabajadores de Hacienda y del Servicio de Administración Tributaria","60163","DGEALSUPFM","Sindicatos"]
["Sindicato Nacional de Trabajadores de la Casa de Moneda de México","60164","DGEALSUPFM","Sindicatos"]
["Sindicato Nacional de Trabajadores de la Comisión Nacional Bancaria y de Valores","60166","DGEALSUPFM","Sindicatos"]
["Sindicato Nacional de Trabajadores de la Comisión Nacional de Cultura Física y Deporte","60167","DGEALSUPFM","Sindicatos"]
["Sindicato Nacional de Trabajadores de la Comisión Nacional de los Salarios Mínimos","60225","DGEALSUPFM","Sindicatos"]
["Sindicato Nacional de Trabajadores de la Comisión Nacional de Seguros y Fianzas","60112","DGEALSUPFM","Sindicatos"]
["Sindicato Nacional de Trabajadores de la Comisión Nacional para la Protección y Defensa de los Usuarios de Servicios Financieros (SINACONDUSEF)","60168","DGEALSUPFM","Sindicatos"]
["Sindicato Nacional de Trabajadores de la Construcción, Terraceros, Conexos y Similares de México","60268","DGEALSUPFM","Sindicatos"]
["Sindicato Nacional de Trabajadores de la Educación","60171","DGEALSUPFM","Sindicatos"]
["Sindicato Nacional de Trabajadores de la Educación para Adultos","60170","DGEALSUPFM","Sindicatos"]
["Sindicato Nacional de Trabajadores de la Fiscalía General de la República","60176","DGEALSUPFM","Sindicatos"]
["Sindicato Nacional de Trabajadores de la Industria Aeroportuaria y de Servicios, Similares y Conexos de la República Mexicana","60172","DGEALSUPFM","Sindicatos"]
["Sindicato Nacional de Trabajadores de la Industria de Fideicomisos, Casas de Cambio, Casas de Bolsa, Aseguradoras, Uniones de Crédito, Hipotecarias, Administradoras de Fondos de Retiro, Arrendadoras, Almacenadoras, Empresas de Factoraje, Afianzadoras, Auto financiadoras, Cajas de Ahorros, Bancos, Instituciones de Banca Múltiple, Instituciones Financieras, Sociedades Financieras, Empresas Prestadoras de Servicios Laborales del Sector Financiero, Organismos Descentralizados de la Administración Pública Federal y Empresas de Participación Estatal Mayoritaria","60283","DGEALSUPFM","Sindicatos"]
["Sindicato Nacional de Trabajadores de la Industria Láctea, Alimenticia, Similares y Conexos de la República Mexicana","60299","DGEALSUPFM","Sindicatos"]
["Sindicato Nacional de Trabajadores de la Lotería Nacional","60173","DGEALSUPFM","Sindicatos"]
["Sindicato Nacional de Trabajadores de la Procuraduría Agraria “Felipe Carrillo Puerto”","60174","DGEALSUPFM","Sindicatos"]
["Sindicato Nacional de Trabajadores de la Procuraduría Federal del Consumidor","60274","DGEALSUPFM","Sindicatos"]
["Sindicato Nacional de Trabajadores de la Secretaría de Agricultura, Ganadería, Desarrollo Rural, Pesca y Alimentación","60178","DGEALSUPFM","Sindicatos"]
["Sindicato Nacional de Trabajadores de la Secretaría de Bienestar","60180","DGEALSUPFM","Sindicatos"]
["Sindicato Nacional de Trabajadores de la Secretaría de Comunicaciones y Transportes","60179","DGEALSUPFM","Sindicatos"]
["Sindicato Nacional de Trabajadores de la Secretaría de Desarrollo Agrario, Territorial y Urbano","60257","DGEALSUPFM","Sindicatos"]
["Sindicato Nacional de Trabajadores de la Secretaría de Economía","60181","DGEALSUPFM","Sindicatos"]
["Sindicato Nacional de Trabajadores de la Secretaría de Energía","60182","DGEALSUPFM","Sindicatos"]
["Sindicato Nacional de Trabajadores de la Secretaría de Gobernación","60183","DGEALSUPFM","Sindicatos"]
["Sindicato Nacional de Trabajadores de la Secretaría de Medio Ambiente y Recursos Naturales","60190","DGEALSUPFM","Sindicatos"]
["Sindicato Nacional de Trabajadores de la Secretaría de Relaciones Exteriores","60186","DGEALSUPFM","Sindicatos"]
["Sindicato Nacional de Trabajadores de la Secretaría de Salud","60187","DGEALSUPFM","Sindicatos"]
["Sindicato Nacional de Trabajadores de la Secretaría de Turismo","60189","DGEALSUPFM","Sindicatos"]
["Sindicato Nacional de Trabajadores de la Secretaría del Trabajo y Previsión Social","60191","DGEALSUPFM","Sindicatos"]
["Sindicato Nacional de Trabajadores de los Tribunales Agrarios","60158","DGEALSUPFM","Sindicatos"]
["Sindicato Nacional de Trabajadores de Pronósticos para la Asistencia Pública","60160","DGEALSUPFM","Sindicatos"]
["Sindicato Nacional de Trabajadores del Archivo General de la Nación","60193","DGEALSUPFM","Sindicatos"]
["Sindicato Nacional de Trabajadores del Banco del Ahorro Nacional y Servicios Financieros","60194","DGEALSUPFM","Sindicatos"]
["Sindicato Nacional de Trabajadores del Centro Nacional de Control del Gas Natural","60258","DGEALSUPFM","Sindicatos"]
["Sindicato Nacional de Trabajadores del Fideicomiso Fondo Nacional de Fomento Ejidal","60195","DGEALSUPFM","Sindicatos"]
["Sindicato Nacional de Trabajadores del Fondo Nacional de Fomento al Turismo","60196","DGEALSUPFM","Sindicatos"]
["Sindicato Nacional de Trabajadores del Instituto de Seguridad y Servicios Sociales de los Trabajadores del Estado","60198","DGEALSUPFM","Sindicatos"]
["Sindicato Nacional de Trabajadores del Instituto Mexicano de la Radio","60200","DGEALSUPFM","Sindicatos"]
["Sindicato Nacional de Trabajadores del Instituto Mexicano del Petróleo","60278","DGEALSUPFM","Sindicatos"]
["Sindicato Nacional de Trabajadores del Instituto Nacional de Bellas Artes y Literatura","60290","DGEALSUPFM","Sindicatos"]
["Sindicato Nacional de Trabajadores del Instituto Nacional de Bellas Artes y Literatura 227","60314","DGEALSUPFM","Sindicatos"]
["Sindicato Nacional de Trabajadores del Instituto Nacional de Estadística y Geografía","60201","DGEALSUPFM","Sindicatos"]
["Sindicato Nacional de Trabajadores del Instituto Nacional de la Infraestructura Física Educativa","60197","DGEALSUPFM","Sindicatos"]
["Sindicato Nacional de Trabajadores del Instituto Nacional de las Personas Adultas Mayores","60202","DGEALSUPFM","Sindicatos"]
["Sindicato Nacional de Trabajadores del Instituto Nacional del Suelo Sustentable","60169","DGEALSUPFM","Sindicatos"]
["Sindicato Nacional de Trabajadores del Seguro Social","60203","DGEALSUPFM","Sindicatos"]
["Sindicato Nacional de Trabajadores del Servicio Postal Mexicano “Correos de México”","60204","DGEALSUPFM","Sindicatos"]
["Sindicato Nacional de Trabajadores del Sistema Nacional para el Desarrollo Integral de la Familia","60205","DGEALSUPFM","Sindicatos"]
["Sindicato Nacional de Trabajadores del Tribunal Federal de Justicia Administrativa","60206","DGEALSUPFM","Sindicatos"]
["Sindicato Nacional de Trabajadores Revolucionarios de la Secretaría de Desarrollo Agrario, Territorial y Urbano","60289","DGEALSUPFM","Sindicatos"]
["Sindicato Nacional de Trabajadores y Empleados de Servicios en General, Financieros, Similares y Conexos de la República Mexicana","60282","DGEALSUPFM","Sindicatos"]
["Sindicato Nacional de Trabajadores, Académicos e Investigadores del Instituto Nacional de Bellas Artes y Literatura","60302","DGEALSUPFM","Sindicatos"]
["Sindicato Nacional de Unidad de los Trabajadores de la Secretaría de Comunicaciones y Transportes","60209","DGEALSUPFM","Sindicatos"]
["Sindicato Nacional Democrático de Trabajadores de la Secretaría de Cultura.","60308","DGEALSUPFM","Sindicatos"]
["Sindicato Nacional Democrático de Trabajadores de la Secretaría de Desarrollo Agrario, Territorial y Urbano","60211","DGEALSUPFM","Sindicatos"]
["Sindicato Nacional Democrático de Trabajadores de los Tribunales Agrarios","60212","DGEALSUPFM","Sindicatos"]
["Sindicato Nacional Democrático de Trabajadores de SENEAM","60293","DGEALSUPFM","Sindicatos"]
["Sindicato Nacional Independiente de los Trabajadores de la Secretaría de Economía","60213","DGEALSUPFM","Sindicatos"]
["Sindicato Nacional Independiente de Trabajadores de la Fiscalía General de la Republica","60214","DGEALSUPFM","Sindicatos"]
["Sindicato Nacional Independiente de Trabajadores de la Secretaría de Desarrollo Agrario, Territorial y Urbano","60259","DGEALSUPFM","Sindicatos"]
["Sindicato Nacional Independiente de Trabajadores de la Secretaría de Desarrollo Social","60215","DGEALSUPFM","Sindicatos"]
["Sindicato Nacional Independiente de Trabajadores de la Secretaría de Medio Ambiente y Recursos Naturales","60216","DGEALSUPFM","Sindicatos"]
["Sindicato Nacional Independiente de Trabajadores del Instituto Nacional de Bellas Artes y Literatura","60303","DGEALSUPFM","Sindicatos"]
["Sindicato Nacional Único y Democrático de los Trabajadores del Banco Nacional de Comercio Exterior","60218","DGEALSUPFM","Sindicatos"]
["Sindicato Patrimonio de Trabajadores y Empleados de la Industria","60294","DGEALSUPFM","Sindicatos"]
["Sindicato Revolucionario de Trabajadores de la Auditoría Superior de la Federación de la H. Cámara de Diputados","60219","DGEALSUPFM","Sindicatos"]
["Sindicato Revolucionario Nacional de Trabajadores de la Secretaría de Comunicaciones y Transportes","60313","DGEALSUPFM","Sindicatos"]
["Sindicato Único de Personal Técnico y Administrativo del Centro de Investigaciones Biológicas del Noroeste","60221","DGEALSUPFM","Sindicatos"]
["Sindicato Único de Trabajadores Académicos de la Universidad Autónoma Agraria Antonio Narro","60222","DGEALSUPFM","Sindicatos"]
["Sindicato Único de Trabajadores de AGROASEMEX, S. A.","60284","DGEALSUPFM","Sindicatos"]
["Sindicato Único de Trabajadores de Biológicos y Reactivos","60223","DGEALSUPFM","Sindicatos"]
["Sindicato Único de Trabajadores de El Colegio de la Frontera Sur","60224","DGEALSUPFM","Sindicatos"]
["Sindicato Único de Trabajadores de El Colegio de México","60234","DGEALSUPFM","Sindicatos"]
["Sindicato Único de Trabajadores de la Industria Nuclear","60226","DGEALSUPFM","Sindicatos"]
["Sindicato Único de Trabajadores de la Productora Nacional de Biológicos Veterinarios","60227","DGEALSUPFM","Sindicatos"]
["Sindicato Único de Trabajadores de la Universidad Autónoma Agraria \"Antonio Narro\"","60229","DGEALSUPFM","Sindicatos"]
["Sindicato Único de Trabajadores de Notimex","60230","DGEALSUPFM","Sindicatos"]
["Sindicato Único de Trabajadores del Banco de México","60231","DGEALSUPFM","Sindicatos"]
["Sindicato Único de Trabajadores del Centro de Enseñanza Técnica Industrial","60232","DGEALSUPFM","Sindicatos"]
["Sindicato Único de Trabajadores del Centro de Investigación y de Estudios Avanzados del Instituto Politécnico Nacional","60233","DGEALSUPFM","Sindicatos"]
["Sindicato Único de Trabajadores del Centro de Investigaciones y Estudios Superiores en Antropología Social","60119","DGEALSUPFM","Sindicatos"]
["Sindicato Único de Trabajadores del Colegio Nacional de Educación Profesional Técnica","60235","DGEALSUPFM","Sindicatos"]
["Sindicato Único de Trabajadores del Fondo de Cultura Económica","60236","DGEALSUPFM","Sindicatos"]
["Sindicato Único de Trabajadores del Hospital General \"Dr. Manuel Gea González\"","60237","DGEALSUPFM","Sindicatos"]
["Sindicato Único de Trabajadores del Instituto Mexicano de Cinematografía","60239","DGEALSUPFM","Sindicatos"]
["Sindicato Único de Trabajadores del Instituto Mexicano de la Propiedad Industrial","60102","DGEALSUPFM","Sindicatos"]
["Sindicato Único de Trabajadores del Instituto Nacional de Bellas Artes y Literatura","60307","DGEALSUPFM","Sindicatos"]
["Sindicato Único de Trabajadores del Instituto Nacional de Ciencias Médicas y Nutrición “Salvador Zubirán”","60240","DGEALSUPFM","Sindicatos"]
["Sindicato Único de Trabajadores del Instituto Nacional de Pediatría","60241","DGEALSUPFM","Sindicatos"]
["Sindicato Único de Trabajadores del Instituto Nacional de Perinatología","60242","DGEALSUPFM","Sindicatos"]
["Sindicato Único de Trabajadores Democráticos de la Secretaría de Medio Ambiente y Recursos Naturales","60243","DGEALSUPFM","Sindicatos"]
["Sindicato Único de Trabajadores Docentes CONALEP","60244","DGEALSUPFM","Sindicatos"]
["Sindicato Único de Trabajadores Docentes del Colegio Nacional de Educación Profesional Técnica en el estado de Oaxaca, SUTDCEO","60287","DGEALSUPFM","Sindicatos"]
["Sindicato Único de Trabajadores Electricistas de la República Mexicana (SUTERM)","60245","DGEALSUPFM","Sindicatos"]
["Sindicato Único Nacional de los Trabajadores de la Secretaría de Comunicaciones y Transportes","60292","DGEALSUPFM","Sindicatos"]
["Sindicato Único Nacional de Trabajadores de Nacional Financiera","60246","DGEALSUPFM","Sindicatos"]
["Sindicato Único Nacional de Trabajadores del Banco Nacional de Obras y Servicios Públicos","60248","DGEALSUPFM","Sindicatos"]
["Sindicato Único Nacional de Trabajadores del Instituto Nacional de Estadística y Geografía","60249","DGEALSUPFM","Sindicatos"]
["Sindicato Unificado de Trabajadores del Centro de Investigación Científica y de Educación Superior de Ensenada","60285","DGEALSUPFM","Sindicatos"]
["Sindicato Unificado de Trabajadores del Instituto Nacional de Pediatría","60317","DGEALSUPFM","Sindicatos"]
["Sindicato Unión de Trabajadores del Partido de la Revolución Democrática","60312","DGEALSUPFM","Sindicatos"]
["Sindicato Unitario de Trabajadores del Instituto Nacional de Astrofísica, Óptica y Electrónica","60252","DGEALSUPFM","Sindicatos"]
["Sistema Nacional para el Desarrollo Integral de la Familia","12360","DGEPPOED","Ejecutivo"]
["Sistema Público de Radiodifusión del Estado Mexicano","04430","DGEPPOED","Ejecutivo"]
["Sociedad Hipotecaria Federal, S.N.C.","06820","DGOAEEF","Ejecutivo"]
["Suprema Corte de Justicia de la Nación","03300","DGEPLJ","Judicial"]
["Talleres Gráficos de México","04101","DGEPPOED","Ejecutivo"]
["Tecnológico Nacional de México (*)","11004","DGEAPCTA","Ejecutivo"]
["Telecomunicaciones de México","09437","DGEPPOED","Ejecutivo"]
["Televisión Metropolitana, S.A. de C.V.","11425","DGOAEEF","Ejecutivo"]
["Tribunal Electoral del Poder Judicial de la Federación","03100","DGEPLJ","Judicial"]
["Tribunal Federal de Conciliación y Arbitraje","04200","DGEALSUPFM","Ejecutivo"]
["Tribunal Federal de Justicia Administrativa","32100","DGEAPCTA","Ejecutivo"]
["Tribunal Superior Agrario","31100","DGEAPCTA","Ejecutivo"]
["Unidad del Sistema para la Carrera de las Maestras y los Maestros","11003","DGEAPCTA","Ejecutivo"]
["Unión Nacional de Trabajadores de la Industria Alimenticia, Refresquera, Turística, Hotelera, Gastronómica, Similares y Conexos","60297","DGEALSUPFM","Sindicatos"]
["Universidad Abierta y a Distancia de México (*)","11005","DGEAPCTA","Ejecutivo"]
["Universidad Autónoma Agraria Antonio Narro","64100","DGEALSUPFM","Órganos Autónomos"]
["Universidad Autónoma Chapingo","29004","DGEALSUPFM","Órganos Autónomos"]
["Universidad Autónoma Metropolitana","64300","DGEALSUPFM","Órganos Autónomos"]
["Universidad Nacional Autónoma de México","64400","DGEALSUPFM","Órganos Autónomos"]
["Universidad Pedagógica Nacional","29010","DGEAPCTA","Ejecutivo"]
["XE-IPN Canal 11 (*)","11006","DGEAPCTA","Ejecutivo"]